{"text_format":"1","workbook":"xlsx","n_sheets":6,"sheets":["Дитячі","Юнацькі","Звіт","6-НК_тис","6-НК_абс","80-а-рвк_тис"],"not_rendered":{"charts":0,"images":0,"macros":1,"external_links":0,"defined_names":3,"comments":0,"pivot_tables":0},"unopened":[],"bounds":{"document_bytes":16777216,"sheet_cells":100000,"rows_first":2000,"rows_last":500,"rows_between":2000,"halvings":0,"cell_chars":16384,"cell_head_chars":4096},"cells_cut":0,"cells_raw":0,"read":"whole","date_system":"1900"}

{"sheet":"Дитячі","index":0,"n_rows":57,"n_cols":37,"rows_kept":57,"cut":false,"hidden":true,"merged":[[4,15,5,15],[10,0,10,29],[0,0,0,5],[2,0,2,29],[3,0,5,0],[3,1,4,2],[3,3,5,3],[3,4,5,4],[3,5,3,15],[3,16,5,16],[3,17,4,19],[3,20,4,29],[11,10,12,10],[4,5,4,6],[4,7,4,10],[4,11,4,12],[4,13,4,14],[18,0,19,0],[18,1,18,5],[18,6,18,9],[18,10,18,13],[18,14,19,14],[11,17,12,17],[11,18,12,18],[11,19,11,23],[11,24,11,29],[17,0,17,36],[11,11,12,11],[11,12,12,12],[11,13,12,13],[11,14,12,14],[11,15,12,15],[11,16,12,16],[11,0,12,0],[11,1,12,1],[11,2,12,2],[11,3,12,3],[11,4,11,9],[18,35,19,35],[18,36,19,36],[24,0,24,19],[25,0,27,0],[25,1,25,5],[25,6,25,9],[25,10,25,19],[26,1,27,1],[26,2,27,2],[26,3,27,3],[18,15,18,19],[18,20,18,23],[18,24,19,24],[18,25,18,29],[18,30,18,33],[18,34,19,34],[45,14,45,15],[26,10,27,10],[26,11,26,15],[26,16,26,19],[32,0,32,10],[38,0,38,4],[44,0,44,18],[26,4,27,4],[26,5,27,5],[26,6,27,6],[26,7,27,7],[26,8,27,8],[26,9,27,9],[53,13,54,13],[45,16,46,16],[45,17,46,17],[45,18,46,18],[51,0,51,19],[52,0,54,0],[52,1,52,6],[52,7,52,10],[52,11,54,11],[52,12,52,18],[52,19,54,19],[45,0,46,0],[45,1,46,1],[45,2,45,5],[45,6,45,9],[45,10,45,13],[53,1,54,1],[53,2,53,6],[53,7,54,7],[53,8,53,10],[53,12,54,12],[53,14,54,14],[53,15,54,15],[53,16,54,16],[53,17,54,17],[53,18,54,18]]}
["Кількість бібліотек в звіті:","Кількість бібліотек в звіті:","Кількість бібліотек в звіті:","Кількість бібліотек в звіті:","Кількість бібліотек в звіті:","Кількість бібліотек в звіті:",2]
[]
["І.МАТЕРІАЛЬНО-ТЕХНІЧНА БАЗА","І.МАТЕРІАЛЬНО-ТЕХНІЧНА БАЗА","І.МАТЕРІАЛЬНО-ТЕХНІЧНА БАЗА","І.МАТЕРІАЛЬНО-ТЕХНІЧНА БАЗА","І.МАТЕРІАЛЬНО-ТЕХНІЧНА БАЗА","І.МАТЕРІАЛЬНО-ТЕХНІЧНА БАЗА","І.МАТЕРІАЛЬНО-ТЕХНІЧНА БАЗА","І.МАТЕРІАЛЬНО-ТЕХНІЧНА БАЗА","І.МАТЕРІАЛЬНО-ТЕХНІЧНА БАЗА","І.МАТЕРІАЛЬНО-ТЕХНІЧНА БАЗА","І.МАТЕРІАЛЬНО-ТЕХНІЧНА БАЗА","І.МАТЕРІАЛЬНО-ТЕХНІЧНА БАЗА","І.МАТЕРІАЛЬНО-ТЕХНІЧНА БАЗА","І.МАТЕРІАЛЬНО-ТЕХНІЧНА БАЗА","І.МАТЕРІАЛЬНО-ТЕХНІЧНА БАЗА","І.МАТЕРІАЛЬНО-ТЕХНІЧНА БАЗА","І.МАТЕРІАЛЬНО-ТЕХНІЧНА БАЗА","І.МАТЕРІАЛЬНО-ТЕХНІЧНА БАЗА","І.МАТЕРІАЛЬНО-ТЕХНІЧНА БАЗА","І.МАТЕРІАЛЬНО-ТЕХНІЧНА БАЗА","І.МАТЕРІАЛЬНО-ТЕХНІЧНА БАЗА","І.МАТЕРІАЛЬНО-ТЕХНІЧНА БАЗА","І.МАТЕРІАЛЬНО-ТЕХНІЧНА БАЗА","І.МАТЕРІАЛЬНО-ТЕХНІЧНА БАЗА","І.МАТЕРІАЛЬНО-ТЕХНІЧНА БАЗА","І.МАТЕРІАЛЬНО-ТЕХНІЧНА БАЗА","І.МАТЕРІАЛЬНО-ТЕХНІЧНА БАЗА","І.МАТЕРІАЛЬНО-ТЕХНІЧНА БАЗА","І.МАТЕРІАЛЬНО-ТЕХНІЧНА БАЗА","І.МАТЕРІАЛЬНО-ТЕХНІЧНА БАЗА"]
["Загальна площа\nприміщень (кв. м)","у т. ч.","у т. ч.","Кількість бібліотечних\nпунктів","Кількість бібліотечних\nприміщень","Характеристика приміщень бібліотеки (од.)","Характеристика приміщень бібліотеки (од.)","Характеристика приміщень бібліотеки (од.)","Характеристика приміщень бібліотеки (од.)","Характеристика приміщень бібліотеки (од.)","Характеристика приміщень бібліотеки (од.)","Характеристика приміщень бібліотеки (од.)","Характеристика приміщень бібліотеки (од.)","Характеристика приміщень бібліотеки (од.)","Характеристика приміщень бібліотеки (од.)","Характеристика приміщень бібліотеки (од.)","Кількість посадочних\nмісць для користувачів","Засоби зв'язку","Засоби зв'язку","Засоби зв'язку","Кількість технічних засобів (од.)","Кількість технічних засобів (од.)","Кількість технічних засобів (од.)","Кількість технічних засобів (од.)","Кількість технічних засобів (од.)","Кількість технічних засобів (од.)","Кількість технічних засобів (од.)","Кількість технічних засобів (од.)","Кількість технічних засобів (од.)","Кількість технічних засобів (од.)"]
["Загальна площа\nприміщень (кв. м)","у т. ч.","у т. ч.","Кількість бібліотечних\nпунктів","Кількість бібліотечних\nприміщень","Майнова","Майнова","Технічна","Технічна","Технічна","Технічна","Опалення","Опалення","Освітлення","Освітлення","Приміщення\nобладнане пандусом,\nпідйомником","Кількість посадочних\nмісць для користувачів","Засоби зв'язку","Засоби зв'язку","Засоби зв'язку","Кількість технічних засобів (од.)","Кількість технічних засобів (од.)","Кількість технічних засобів (од.)","Кількість технічних засобів (од.)","Кількість технічних засобів (од.)","Кількість технічних засобів (од.)","Кількість технічних засобів (од.)","Кількість технічних засобів (од.)","Кількість технічних засобів (од.)","Кількість технічних засобів (од.)"]
["Загальна площа\nприміщень (кв. м)","для зберігання\nфондів","для\nобслуговування\nкористувачів","Кількість бібліотечних\nпунктів","Кількість бібліотечних\nприміщень","на праві\nоперативного\nуправління","орендоване","потребує\nкапітального\nремонту","аварійне","не потребує\nремонту","потребує\nпоточного ремонту","Опалювані\nприміщення","Неопалювані\nприміщення","Приміщення з\nосвітленням","Приміщення без\nосвітлення","Приміщення\nобладнане пандусом,\nпідйомником","Кількість посадочних\nмісць для користувачів","Кількість номерів\nстаціонарного\nтелефонного\nзв'язку","Кількість  факсів","Кількість адрес\nелектронної пошти","комп'ютерів","у т. ч. комп'ютерів\nдля користувачів","комп'ютерів з\nдоступом до\nмережі Інтернет","у т. ч.\nкомп'ютерів для\nкористувачів з\nдоступом до мережі\nІнтернет","у т. ч. комп'ютерів з\nтифлообладнанням\nта спеціалізованим\nпрограмним\nустаткуванням\n для сліпих та\nслабозорих","копіювально-\nрозмножувальної\nтехніки","мультимедійного\nобладнання","у т. ч. електронних\nпристроїв для\nчитання","транспортних\nзасобів","у т. ч.\nспеціалізованих\nтранспортних засобів\nбібліобус"]
[1,2,3,4,5,6,7,8,9,10,11,12,13,14,15,16,17,18,19,20,21,22,23,24,25,26,27,28,29,30]
[20,22,24,26,28,30,32,34,36,38,40,42,44,46,48,50,52,54,56,58,60,62,64,66,68,70,72,74,76,78]
[]
[]
["ІІ. КОРИСТУВАЧІ, ВІДВІДУВАННЯ, ЗВЕРНЕННЯ ДО БІБЛІОТЕКИ","ІІ. КОРИСТУВАЧІ, ВІДВІДУВАННЯ, ЗВЕРНЕННЯ ДО БІБЛІОТЕКИ","ІІ. КОРИСТУВАЧІ, ВІДВІДУВАННЯ, ЗВЕРНЕННЯ ДО БІБЛІОТЕКИ","ІІ. КОРИСТУВАЧІ, ВІДВІДУВАННЯ, ЗВЕРНЕННЯ ДО БІБЛІОТЕКИ","ІІ. КОРИСТУВАЧІ, ВІДВІДУВАННЯ, ЗВЕРНЕННЯ ДО БІБЛІОТЕКИ","ІІ. КОРИСТУВАЧІ, ВІДВІДУВАННЯ, ЗВЕРНЕННЯ ДО БІБЛІОТЕКИ","ІІ. КОРИСТУВАЧІ, ВІДВІДУВАННЯ, ЗВЕРНЕННЯ ДО БІБЛІОТЕКИ","ІІ. КОРИСТУВАЧІ, ВІДВІДУВАННЯ, ЗВЕРНЕННЯ ДО БІБЛІОТЕКИ","ІІ. КОРИСТУВАЧІ, ВІДВІДУВАННЯ, ЗВЕРНЕННЯ ДО БІБЛІОТЕКИ","ІІ. КОРИСТУВАЧІ, ВІДВІДУВАННЯ, ЗВЕРНЕННЯ ДО БІБЛІОТЕКИ","ІІ. КОРИСТУВАЧІ, ВІДВІДУВАННЯ, ЗВЕРНЕННЯ ДО БІБЛІОТЕКИ","ІІ. КОРИСТУВАЧІ, ВІДВІДУВАННЯ, ЗВЕРНЕННЯ ДО БІБЛІОТЕКИ","ІІ. КОРИСТУВАЧІ, ВІДВІДУВАННЯ, ЗВЕРНЕННЯ ДО БІБЛІОТЕКИ","ІІ. КОРИСТУВАЧІ, ВІДВІДУВАННЯ, ЗВЕРНЕННЯ ДО БІБЛІОТЕКИ","ІІ. КОРИСТУВАЧІ, ВІДВІДУВАННЯ, ЗВЕРНЕННЯ ДО БІБЛІОТЕКИ","ІІ. КОРИСТУВАЧІ, ВІДВІДУВАННЯ, ЗВЕРНЕННЯ ДО БІБЛІОТЕКИ","ІІ. КОРИСТУВАЧІ, ВІДВІДУВАННЯ, ЗВЕРНЕННЯ ДО БІБЛІОТЕКИ","ІІ. КОРИСТУВАЧІ, ВІДВІДУВАННЯ, ЗВЕРНЕННЯ ДО БІБЛІОТЕКИ","ІІ. КОРИСТУВАЧІ, ВІДВІДУВАННЯ, ЗВЕРНЕННЯ ДО БІБЛІОТЕКИ","ІІ. КОРИСТУВАЧІ, ВІДВІДУВАННЯ, ЗВЕРНЕННЯ ДО БІБЛІОТЕКИ","ІІ. КОРИСТУВАЧІ, ВІДВІДУВАННЯ, ЗВЕРНЕННЯ ДО БІБЛІОТЕКИ","ІІ. КОРИСТУВАЧІ, ВІДВІДУВАННЯ, ЗВЕРНЕННЯ ДО БІБЛІОТЕКИ","ІІ. КОРИСТУВАЧІ, ВІДВІДУВАННЯ, ЗВЕРНЕННЯ ДО БІБЛІОТЕКИ","ІІ. КОРИСТУВАЧІ, ВІДВІДУВАННЯ, ЗВЕРНЕННЯ ДО БІБЛІОТЕКИ","ІІ. КОРИСТУВАЧІ, ВІДВІДУВАННЯ, ЗВЕРНЕННЯ ДО БІБЛІОТЕКИ","ІІ. КОРИСТУВАЧІ, ВІДВІДУВАННЯ, ЗВЕРНЕННЯ ДО БІБЛІОТЕКИ","ІІ. КОРИСТУВАЧІ, ВІДВІДУВАННЯ, ЗВЕРНЕННЯ ДО БІБЛІОТЕКИ","ІІ. КОРИСТУВАЧІ, ВІДВІДУВАННЯ, ЗВЕРНЕННЯ ДО БІБЛІОТЕКИ","ІІ. КОРИСТУВАЧІ, ВІДВІДУВАННЯ, ЗВЕРНЕННЯ ДО БІБЛІОТЕКИ","ІІ. КОРИСТУВАЧІ, ВІДВІДУВАННЯ, ЗВЕРНЕННЯ ДО БІБЛІОТЕКИ"]
["Населення зони\nобслуговування","Кількість користувачів протягом року (усього)","У т. ч. обслужених через нестаціонарні форми обслуговування","Кількість зареєстрованих користувачів, згідно з ЄРК","Кількість зареєстрованих користувачів за віком","Кількість зареєстрованих користувачів за віком","Кількість зареєстрованих користувачів за віком","Кількість зареєстрованих користувачів за віком","Кількість зареєстрованих користувачів за віком","Кількість зареєстрованих користувачів за віком","Кількість відвідувань\nбібліотеки","Кількість відвідувань масових\nзаходів, організованих\nбібліотекою","Кількість заходів\nдля користувачів\nв межах бібліотеки","Кількість заходів для\nкористувачів за межами\nбібліотеки","Кількість учасників\nзаходів в межах\nбібліотеки","Кількість учасників\nзаходів за\nмежами бібліотеки","Загальна кількість\nнавчань з ІТ\nдля відвідувачів","Загальна кількість осіб,\nякі пройшли навчання\nз ІТ у бібліотеках","Кількість осіб, які\nскористалися доступом до\nінтренету у бібліотеці","Бібліотека працює годин на тиждень","Бібліотека працює годин на тиждень","Бібліотека працює годин на тиждень","Бібліотека працює годин на тиждень","Бібліотека працює годин на тиждень","Група за оплатою праці керівних працівників бібліотек та централізованих бібліотечних систем","Група за оплатою праці керівних працівників бібліотек та централізованих бібліотечних систем","Група за оплатою праці керівних працівників бібліотек та централізованих бібліотечних систем","Група за оплатою праці керівних працівників бібліотек та централізованих бібліотечних систем","Група за оплатою праці керівних працівників бібліотек та централізованих бібліотечних систем","Група за оплатою праці керівних працівників бібліотек та централізованих бібліотечних систем"]
["Населення зони\nобслуговування","Кількість користувачів протягом року (усього)","У т. ч. обслужених через нестаціонарні форми обслуговування","Кількість зареєстрованих користувачів, згідно з ЄРК","до 7 років","від 7 до 15 років","від 15 до 18 років","від 18 до 22 років","від 22 до 60 років","від 60 років","Кількість відвідувань\nбібліотеки","Кількість відвідувань масових\nзаходів, організованих\nбібліотекою","Кількість заходів\nдля користувачів\nв межах бібліотеки","Кількість заходів для\nкористувачів за межами\nбібліотеки","Кількість учасників\nзаходів в межах\nбібліотеки","Кількість учасників\nзаходів за\nмежами бібліотеки","Загальна кількість\nнавчань з ІТ\nдля відвідувачів","Загальна кількість осіб,\nякі пройшли навчання\nз ІТ у бібліотеках","Кількість осіб, які\nскористалися доступом до\nінтренету у бібліотеці","до 10","від 11 до 20","від 21 до 30","від 31 до 40","більше 40","національна","1 група","2 група","3 група","4 група","поза групою"]
[1,2,3,4,5,6,7,8,9,10,11,12,13,14,15,16,17,18,19,20,21,22,23,24,25,26,27,28,29,30]
[80,82,84,86,88,90,92,94,96,98,100,102,104,106,108,110,112,114,116,118,120,122,124,126,128,130,132,134,136,138]
[]
[]
["ІІІ.ФОНДИ: НАДІЙШЛО, ВИБУЛО","ІІІ.ФОНДИ: НАДІЙШЛО, ВИБУЛО","ІІІ.ФОНДИ: НАДІЙШЛО, ВИБУЛО","ІІІ.ФОНДИ: НАДІЙШЛО, ВИБУЛО","ІІІ.ФОНДИ: НАДІЙШЛО, ВИБУЛО","ІІІ.ФОНДИ: НАДІЙШЛО, ВИБУЛО","ІІІ.ФОНДИ: НАДІЙШЛО, ВИБУЛО","ІІІ.ФОНДИ: НАДІЙШЛО, ВИБУЛО","ІІІ.ФОНДИ: НАДІЙШЛО, ВИБУЛО","ІІІ.ФОНДИ: НАДІЙШЛО, ВИБУЛО","ІІІ.ФОНДИ: НАДІЙШЛО, ВИБУЛО","ІІІ.ФОНДИ: НАДІЙШЛО, ВИБУЛО","ІІІ.ФОНДИ: НАДІЙШЛО, ВИБУЛО","ІІІ.ФОНДИ: НАДІЙШЛО, ВИБУЛО","ІІІ.ФОНДИ: НАДІЙШЛО, ВИБУЛО","ІІІ.ФОНДИ: НАДІЙШЛО, ВИБУЛО","ІІІ.ФОНДИ: НАДІЙШЛО, ВИБУЛО","ІІІ.ФОНДИ: НАДІЙШЛО, ВИБУЛО","ІІІ.ФОНДИ: НАДІЙШЛО, ВИБУЛО","ІІІ.ФОНДИ: НАДІЙШЛО, ВИБУЛО","ІІІ.ФОНДИ: НАДІЙШЛО, ВИБУЛО","ІІІ.ФОНДИ: НАДІЙШЛО, ВИБУЛО","ІІІ.ФОНДИ: НАДІЙШЛО, ВИБУЛО","ІІІ.ФОНДИ: НАДІЙШЛО, ВИБУЛО","ІІІ.ФОНДИ: НАДІЙШЛО, ВИБУЛО","ІІІ.ФОНДИ: НАДІЙШЛО, ВИБУЛО","ІІІ.ФОНДИ: НАДІЙШЛО, ВИБУЛО","ІІІ.ФОНДИ: НАДІЙШЛО, ВИБУЛО","ІІІ.ФОНДИ: НАДІЙШЛО, ВИБУЛО","ІІІ.ФОНДИ: НАДІЙШЛО, ВИБУЛО","ІІІ.ФОНДИ: НАДІЙШЛО, ВИБУЛО","ІІІ.ФОНДИ: НАДІЙШЛО, ВИБУЛО","ІІІ.ФОНДИ: НАДІЙШЛО, ВИБУЛО","ІІІ.ФОНДИ: НАДІЙШЛО, ВИБУЛО","ІІІ.ФОНДИ: НАДІЙШЛО, ВИБУЛО","ІІІ.ФОНДИ: НАДІЙШЛО, ВИБУЛО","ІІІ.ФОНДИ: НАДІЙШЛО, ВИБУЛО"]
["Надійшло документів до бібліотечного фонду","у т. ч. за видами","у т. ч. за видами","у т. ч. за видами","у т. ч. за видами","у т. ч. за видами","у т. ч. за мовами","у т. ч. за мовами","у т. ч. за мовами","у т. ч. за мовами","За джерелами комплектування","За джерелами комплектування","За джерелами комплектування","За джерелами комплектування","Вибуло документів з бібліотечного фонду","у т. ч. за видами","у т. ч. за видами","у т. ч. за видами","у т. ч. за видами","у т. ч. за видами","у т. ч. за мовами","у т. ч. за мовами","у т. ч. за мовами","у т. ч. за мовами","Фонд на кінець звітного року","у т. ч. за видами","у т. ч. за видами","у т. ч. за видами","у т. ч. за видами","у т. ч. за видами","у т. ч. за мовами","у т. ч. за мовами","у т. ч. за мовами","у т. ч. за мовами","Фонд рідкісних та цінних книг","Кількість книжкових пам'яток","Кількість колекцій"]
["Надійшло документів до бібліотечного фонду","книги","періодичні видання","аудіовізуальні матеріали","електронні видання","Інші","українською","російською","мовами нацменшин","іноземними","Документів за Державними, \nмісцевими програмами","Придбано документів","Обов'язковий примірник","Інші джерела","Вибуло документів з бібліотечного фонду","книги","періодичні видання","аудіовізуальні матеріали","електронні видання","інші","українською","російською","мовами нацменшин","іноземними","Фонд на кінець звітного року","книги","періодичні видання","аудіовізуальні матеріали","електронні видання","інші","українською","російською","мовами нацменшин","іноземними","Фонд рідкісних та цінних книг","Кількість книжкових пам'яток","Кількість колекцій"]
[1,2,3,4,5,6,7,8,9,10,11,12,13,14,15,16,17,18,19,20,21,22,23,24,25,26,27,28,29,30,31,32,33,34,35,36,37]
[140,142,144,146,148,150,152,154,156,158,160,162,164,166,168,170,172,174,176,178,180,182,184,186,188,190,192,194,196,198,200,202,204,206,208,210,212]
[]
[]
["IV. ВИДАЧА","IV. ВИДАЧА","IV. ВИДАЧА","IV. ВИДАЧА","IV. ВИДАЧА","IV. ВИДАЧА","IV. ВИДАЧА","IV. ВИДАЧА","IV. ВИДАЧА","IV. ВИДАЧА","IV. ВИДАЧА","IV. ВИДАЧА","IV. ВИДАЧА","IV. ВИДАЧА","IV. ВИДАЧА","IV. ВИДАЧА","IV. ВИДАЧА","IV. ВИДАЧА","IV. ВИДАЧА","IV. ВИДАЧА"]
["Видача документів (усього)","у т. ч. за видами видань","у т. ч. за видами видань","у т. ч. за видами видань","у т. ч. за видами видань","у т. ч. за видами видань","у т. ч. за мовами","у т. ч. за мовами","у т. ч. за мовами","у т. ч. за мовами","у т. ч. видано примірників дітям до 15 років","у т. ч. видано примірників дітям до 15 років","у т. ч. видано примірників дітям до 15 років","у т. ч. видано примірників дітям до 15 років","у т. ч. видано примірників дітям до 15 років","у т. ч. видано примірників дітям до 15 років","у т. ч. видано примірників дітям до 15 років","у т. ч. видано примірників дітям до 15 років","у т. ч. видано примірників дітям до 15 років","у т. ч. видано примірників дітям до 15 років"]
["Видача документів (усього)","книги","періодичні видання","аудіовізуальні матеріали","електронні видання","інші","українською","російською","мовами нацменшин","іноземними","Усього","у т. ч. за видами","у т. ч. за видами","у т. ч. за видами","у т. ч. за видами","у т. ч. за видами","у т. ч. за мовами","у т. ч. за мовами","у т. ч. за мовами","у т. ч. за мовами"]
["Видача документів (усього)","книги","періодичні видання","аудіовізуальні матеріали","електронні видання","інші","українською","російською","мовами нацменшин","іноземними","Усього","книги","періодичні видання","аудіовізуальні матеріали","електронні видання","інші","українською","російською","мовами нацменшин","іноземними"]
[1,2,3,4,5,6,7,8,9,10,11,12,13,14,15,16,17,18,19,20]
[214,216,218,220,222,224,226,228,230,232,234,236,238,240,242,244,246,248,250,252]
[]
[]
["V. EЛЕКТРОННІ РЕСУРСИ","V. EЛЕКТРОННІ РЕСУРСИ","V. EЛЕКТРОННІ РЕСУРСИ","V. EЛЕКТРОННІ РЕСУРСИ","V. EЛЕКТРОННІ РЕСУРСИ","V. EЛЕКТРОННІ РЕСУРСИ","V. EЛЕКТРОННІ РЕСУРСИ","V. EЛЕКТРОННІ РЕСУРСИ","V. EЛЕКТРОННІ РЕСУРСИ","V. EЛЕКТРОННІ РЕСУРСИ","V. EЛЕКТРОННІ РЕСУРСИ"]
["Кількість власних  веб-сайтів","Інтернет-адреси власних \nвеб-сайтів","Кількість звернень до власних \nвеб-сайтів","Кількість блогів, сторінок у \nсоціальних мережах","Обсяг ЕК","Кількість власних  Баз даних","Обсяг власних БД","Обсяг електронної (цифрової) \nбібліотеки","з них документів, доступ до яких \nможливий через мережу Інтернет","Кількість віддалених \nліцензованих ресурсів","Кількість звернень до віддалених \nліцензованих ресурсів"]
[1,2,3,4,5,6,7,8,9,10,11]
[254,256,258,260,262,264,266,268,270,272,274]
[]
[]
["VI. ДОВІДКОВО-ІНФОРМАЦІЙНЕ ОБСЛУГОВУВАННЯ. \nМІЖБІБЛІОТЕЧНИЙ АБОНЕМЕНТ","VI. ДОВІДКОВО-ІНФОРМАЦІЙНЕ ОБСЛУГОВУВАННЯ. \nМІЖБІБЛІОТЕЧНИЙ АБОНЕМЕНТ","VI. ДОВІДКОВО-ІНФОРМАЦІЙНЕ ОБСЛУГОВУВАННЯ. \nМІЖБІБЛІОТЕЧНИЙ АБОНЕМЕНТ","VI. ДОВІДКОВО-ІНФОРМАЦІЙНЕ ОБСЛУГОВУВАННЯ. \nМІЖБІБЛІОТЕЧНИЙ АБОНЕМЕНТ","VI. ДОВІДКОВО-ІНФОРМАЦІЙНЕ ОБСЛУГОВУВАННЯ. \nМІЖБІБЛІОТЕЧНИЙ АБОНЕМЕНТ"]
["Кількість виконаних довідок","у т. ч. віртуальних","Кількість абонентів МБА, ММБА","Кількість виданих документів іншим \nбібліотекам через МБА, ММБА","Кількість отриманих документів з \nінших бібліотек"]
[1,2,3,4,5]
[276,278,280,282,284]
[]
[]
["VII. ПЕРСОНАЛ БІБЛІОТЕКИ","VII. ПЕРСОНАЛ БІБЛІОТЕКИ","VII. ПЕРСОНАЛ БІБЛІОТЕКИ","VII. ПЕРСОНАЛ БІБЛІОТЕКИ","VII. ПЕРСОНАЛ БІБЛІОТЕКИ","VII. ПЕРСОНАЛ БІБЛІОТЕКИ","VII. ПЕРСОНАЛ БІБЛІОТЕКИ","VII. ПЕРСОНАЛ БІБЛІОТЕКИ","VII. ПЕРСОНАЛ БІБЛІОТЕКИ","VII. ПЕРСОНАЛ БІБЛІОТЕКИ","VII. ПЕРСОНАЛ БІБЛІОТЕКИ","VII. ПЕРСОНАЛ БІБЛІОТЕКИ","VII. ПЕРСОНАЛ БІБЛІОТЕКИ","VII. ПЕРСОНАЛ БІБЛІОТЕКИ","VII. ПЕРСОНАЛ БІБЛІОТЕКИ","VII. ПЕРСОНАЛ БІБЛІОТЕКИ","VII. ПЕРСОНАЛ БІБЛІОТЕКИ","VII. ПЕРСОНАЛ БІБЛІОТЕКИ","VII. ПЕРСОНАЛ БІБЛІОТЕКИ"]
["Загальна кількість працівників","Кількість бібліотечних фахівців","з них мають освіту","з них мають освіту","з них мають освіту","з них мають освіту","Кількість бібліотечних фахівців, які мають стаж бібліотечної роботи","Кількість бібліотечних фахівців, які мають стаж бібліотечної роботи","Кількість бібліотечних фахівців, які мають стаж бібліотечної роботи","Кількість бібліотечних фахівців, які мають стаж бібліотечної роботи","Віковий склад кадрів","Віковий склад кадрів","Віковий склад кадрів","Віковий склад кадрів","Із загальної кількості бібліотечних фахівців працюють","Із загальної кількості бібліотечних фахівців працюють","Кількість бібліотечних фахівців, які \nпідвищили свою кваліфікацію \n(протягом року)","Загальна кількість навчань з ІТ для \nбібліотекарів","Кількість бібліотекарів, для яких \nорганізовано навчання у тренінгових \nцентрах"]
["Загальна кількість працівників","Кількість бібліотечних фахівців","повну вищу","у т. ч. спеціальну","базову вищу","у т. ч. спеціальну","до 3 років","понад 3 роки","понад 10 років","понад 20 років","до 30 років","від 30 до 45 років","від 45 до 60 років","від 60 років","повний робочий день","неповний робочий день","Кількість бібліотечних фахівців, які \nпідвищили свою кваліфікацію \n(протягом року)","Загальна кількість навчань з ІТ для \nбібліотекарів","Кількість бібліотекарів, для яких \nорганізовано навчання у тренінгових \nцентрах"]
[1,2,3,4,5,6,7,8,9,10,11,12,13,14,15,16,17,18,19]
[286,288,290,292,294,296,298,300,302,304,306,308,310,312,314,316,318,320,322]
[]
[]
["VIII. ФІНАНСУВАННЯ","VIII. ФІНАНСУВАННЯ","VIII. ФІНАНСУВАННЯ","VIII. ФІНАНСУВАННЯ","VIII. ФІНАНСУВАННЯ","VIII. ФІНАНСУВАННЯ","VIII. ФІНАНСУВАННЯ","VIII. ФІНАНСУВАННЯ","VIII. ФІНАНСУВАННЯ","VIII. ФІНАНСУВАННЯ","VIII. ФІНАНСУВАННЯ","VIII. ФІНАНСУВАННЯ","VIII. ФІНАНСУВАННЯ","VIII. ФІНАНСУВАННЯ","VIII. ФІНАНСУВАННЯ","VIII. ФІНАНСУВАННЯ","VIII. ФІНАНСУВАННЯ","VIII. ФІНАНСУВАННЯ","VIII. ФІНАНСУВАННЯ","VIII. ФІНАНСУВАННЯ"]
["Загальна сума надходжень \nкоштів за рік","Кошти загального фонду","Кошти загального фонду","Кошти загального фонду","Кошти загального фонду","Кошти загального фонду","Кошти загального фонду","Кошти спеціального фонду","Кошти спеціального фонду","Кошти спеціального фонду","Кошти спеціального фонду","Викорис-\nтання коштів, усього","з них","з них","з них","з них","з них","з них","з них","Залишок коштів спеціаль\nного фонду на кінець року"]
["Загальна сума надходжень \nкоштів за рік","усього","з них","з них","з них","з них","з них","усього","з них","з них","з них","Викорис-\nтання коштів, усього","на оплату праці","на комплектування \nфонду","у т. ч. за рахунок коштів \nзагального фонду","на поточний і \nкапітальний ремонти","у т. ч. за рахунок коштів \nзагального фонду","на придбання основних \nзасобів","у т. ч. за рахунок коштів \nзагального фонду","Залишок коштів спеціаль\nного фонду на кінець року"]
["Загальна сума надходжень \nкоштів за рік","усього","на оплату праці","на комплектування","у т. ч. на періодичні \nвидання","на поточний і \nкапітальний ремонти","на придбання \nосновних засобів","усього","надання платних \nпослуг","благодійні, \nспонсорські внески","інші джерела","Викорис-\nтання коштів, усього","на оплату праці","на комплектування \nфонду","у т. ч. за рахунок коштів \nзагального фонду","на поточний і \nкапітальний ремонти","у т. ч. за рахунок коштів \nзагального фонду","на придбання основних \nзасобів","у т. ч. за рахунок коштів \nзагального фонду","Залишок коштів спеціаль\nного фонду на кінець року"]
[1,2,3,4,5,6,7,8,9,10,11,12,13,14,15,16,17,18,19,20]
[324,326,328,330,332,334,336,338,340,342,344,346,348,350,352,354,356,358,360,362]

{"sheet":"Юнацькі","index":1,"n_rows":57,"n_cols":37,"rows_kept":57,"cut":false,"hidden":true,"merged":[[4,15,5,15],[10,0,10,29],[0,0,0,5],[2,0,2,29],[3,0,5,0],[3,1,4,2],[3,3,5,3],[3,4,5,4],[3,5,3,15],[3,16,5,16],[3,17,4,19],[3,20,4,29],[11,10,12,10],[4,5,4,6],[4,7,4,10],[4,11,4,12],[4,13,4,14],[18,0,19,0],[18,1,18,5],[18,6,18,9],[18,10,18,13],[18,14,19,14],[11,17,12,17],[11,18,12,18],[11,19,11,23],[11,24,11,29],[17,0,17,36],[11,11,12,11],[11,12,12,12],[11,13,12,13],[11,14,12,14],[11,15,12,15],[11,16,12,16],[11,0,12,0],[11,1,12,1],[11,2,12,2],[11,3,12,3],[11,4,11,9],[18,35,19,35],[18,36,19,36],[24,0,24,19],[25,0,27,0],[25,1,25,5],[25,6,25,9],[25,10,25,19],[26,1,27,1],[26,2,27,2],[26,3,27,3],[18,15,18,19],[18,20,18,23],[18,24,19,24],[18,25,18,29],[18,30,18,33],[18,34,19,34],[45,14,45,15],[26,10,27,10],[26,11,26,15],[26,16,26,19],[32,0,32,10],[38,0,38,4],[44,0,44,18],[26,4,27,4],[26,5,27,5],[26,6,27,6],[26,7,27,7],[26,8,27,8],[26,9,27,9],[53,13,54,13],[45,16,46,16],[45,17,46,17],[45,18,46,18],[51,0,51,19],[52,0,54,0],[52,1,52,6],[52,7,52,10],[52,11,54,11],[52,12,52,18],[52,19,54,19],[45,0,46,0],[45,1,46,1],[45,2,45,5],[45,6,45,9],[45,10,45,13],[53,1,54,1],[53,2,53,6],[53,7,54,7],[53,8,53,10],[53,12,54,12],[53,14,54,14],[53,15,54,15],[53,16,54,16],[53,17,54,17],[53,18,54,18]]}
["Кількість бібліотек в звіті:","Кількість бібліотек в звіті:","Кількість бібліотек в звіті:","Кількість бібліотек в звіті:","Кількість бібліотек в звіті:","Кількість бібліотек в звіті:",1]
[]
["І.МАТЕРІАЛЬНО-ТЕХНІЧНА БАЗА","І.МАТЕРІАЛЬНО-ТЕХНІЧНА БАЗА","І.МАТЕРІАЛЬНО-ТЕХНІЧНА БАЗА","І.МАТЕРІАЛЬНО-ТЕХНІЧНА БАЗА","І.МАТЕРІАЛЬНО-ТЕХНІЧНА БАЗА","І.МАТЕРІАЛЬНО-ТЕХНІЧНА БАЗА","І.МАТЕРІАЛЬНО-ТЕХНІЧНА БАЗА","І.МАТЕРІАЛЬНО-ТЕХНІЧНА БАЗА","І.МАТЕРІАЛЬНО-ТЕХНІЧНА БАЗА","І.МАТЕРІАЛЬНО-ТЕХНІЧНА БАЗА","І.МАТЕРІАЛЬНО-ТЕХНІЧНА БАЗА","І.МАТЕРІАЛЬНО-ТЕХНІЧНА БАЗА","І.МАТЕРІАЛЬНО-ТЕХНІЧНА БАЗА","І.МАТЕРІАЛЬНО-ТЕХНІЧНА БАЗА","І.МАТЕРІАЛЬНО-ТЕХНІЧНА БАЗА","І.МАТЕРІАЛЬНО-ТЕХНІЧНА БАЗА","І.МАТЕРІАЛЬНО-ТЕХНІЧНА БАЗА","І.МАТЕРІАЛЬНО-ТЕХНІЧНА БАЗА","І.МАТЕРІАЛЬНО-ТЕХНІЧНА БАЗА","І.МАТЕРІАЛЬНО-ТЕХНІЧНА БАЗА","І.МАТЕРІАЛЬНО-ТЕХНІЧНА БАЗА","І.МАТЕРІАЛЬНО-ТЕХНІЧНА БАЗА","І.МАТЕРІАЛЬНО-ТЕХНІЧНА БАЗА","І.МАТЕРІАЛЬНО-ТЕХНІЧНА БАЗА","І.МАТЕРІАЛЬНО-ТЕХНІЧНА БАЗА","І.МАТЕРІАЛЬНО-ТЕХНІЧНА БАЗА","І.МАТЕРІАЛЬНО-ТЕХНІЧНА БАЗА","І.МАТЕРІАЛЬНО-ТЕХНІЧНА БАЗА","І.МАТЕРІАЛЬНО-ТЕХНІЧНА БАЗА","І.МАТЕРІАЛЬНО-ТЕХНІЧНА БАЗА"]
["Загальна площа\nприміщень (кв. м)","у т. ч.","у т. ч.","Кількість бібліотечних\nпунктів","Кількість бібліотечних\nприміщень","Характеристика приміщень бібліотеки (од.)","Характеристика приміщень бібліотеки (од.)","Характеристика приміщень бібліотеки (од.)","Характеристика приміщень бібліотеки (од.)","Характеристика приміщень бібліотеки (од.)","Характеристика приміщень бібліотеки (од.)","Характеристика приміщень бібліотеки (од.)","Характеристика приміщень бібліотеки (од.)","Характеристика приміщень бібліотеки (од.)","Характеристика приміщень бібліотеки (од.)","Характеристика приміщень бібліотеки (од.)","Кількість посадочних\nмісць для користувачів","Засоби зв'язку","Засоби зв'язку","Засоби зв'язку","Кількість технічних засобів (од.)","Кількість технічних засобів (од.)","Кількість технічних засобів (од.)","Кількість технічних засобів (од.)","Кількість технічних засобів (од.)","Кількість технічних засобів (од.)","Кількість технічних засобів (од.)","Кількість технічних засобів (од.)","Кількість технічних засобів (од.)","Кількість технічних засобів (од.)"]
["Загальна площа\nприміщень (кв. м)","у т. ч.","у т. ч.","Кількість бібліотечних\nпунктів","Кількість бібліотечних\nприміщень","Майнова","Майнова","Технічна","Технічна","Технічна","Технічна","Опалення","Опалення","Освітлення","Освітлення","Приміщення\nобладнане пандусом,\nпідйомником","Кількість посадочних\nмісць для користувачів","Засоби зв'язку","Засоби зв'язку","Засоби зв'язку","Кількість технічних засобів (од.)","Кількість технічних засобів (од.)","Кількість технічних засобів (од.)","Кількість технічних засобів (од.)","Кількість технічних засобів (од.)","Кількість технічних засобів (од.)","Кількість технічних засобів (од.)","Кількість технічних засобів (од.)","Кількість технічних засобів (од.)","Кількість технічних засобів (од.)"]
["Загальна площа\nприміщень (кв. м)","для зберігання\nфондів","для\nобслуговування\nкористувачів","Кількість бібліотечних\nпунктів","Кількість бібліотечних\nприміщень","на праві\nоперативного\nуправління","орендоване","потребує\nкапітального\nремонту","аварійне","не потребує\nремонту","потребує\nпоточного ремонту","Опалювані\nприміщення","Неопалювані\nприміщення","Приміщення з\nосвітленням","Приміщення без\nосвітлення","Приміщення\nобладнане пандусом,\nпідйомником","Кількість посадочних\nмісць для користувачів","Кількість номерів\nстаціонарного\nтелефонного\nзв'язку","Кількість  факсів","Кількість адрес\nелектронної пошти","комп'ютерів","у т. ч. комп'ютерів\nдля користувачів","комп'ютерів з\nдоступом до\nмережі Інтернет","у т. ч.\nкомп'ютерів для\nкористувачів з\nдоступом до мережі\nІнтернет","у т. ч. комп'ютерів з\nтифлообладнанням\nта спеціалізованим\nпрограмним\nустаткуванням\n для сліпих та\nслабозорих","копіювально-\nрозмножувальної\nтехніки","мультимедійного\nобладнання","у т. ч. електронних\nпристроїв для\nчитання","транспортних\nзасобів","у т. ч.\nспеціалізованих\nтранспортних засобів\nбібліобус"]
[1,2,3,4,5,6,7,8,9,10,11,12,13,14,15,16,17,18,19,20,21,22,23,24,25,26,27,28,29,30]
[10,11,12,13,14,15,16,17,18,19,20,21,22,23,24,25,26,27,28,29,30,31,32,33,34,35,36,37,38,39]
[]
[]
["ІІ. КОРИСТУВАЧІ, ВІДВІДУВАННЯ, ЗВЕРНЕННЯ ДО БІБЛІОТЕКИ","ІІ. КОРИСТУВАЧІ, ВІДВІДУВАННЯ, ЗВЕРНЕННЯ ДО БІБЛІОТЕКИ","ІІ. КОРИСТУВАЧІ, ВІДВІДУВАННЯ, ЗВЕРНЕННЯ ДО БІБЛІОТЕКИ","ІІ. КОРИСТУВАЧІ, ВІДВІДУВАННЯ, ЗВЕРНЕННЯ ДО БІБЛІОТЕКИ","ІІ. КОРИСТУВАЧІ, ВІДВІДУВАННЯ, ЗВЕРНЕННЯ ДО БІБЛІОТЕКИ","ІІ. КОРИСТУВАЧІ, ВІДВІДУВАННЯ, ЗВЕРНЕННЯ ДО БІБЛІОТЕКИ","ІІ. КОРИСТУВАЧІ, ВІДВІДУВАННЯ, ЗВЕРНЕННЯ ДО БІБЛІОТЕКИ","ІІ. КОРИСТУВАЧІ, ВІДВІДУВАННЯ, ЗВЕРНЕННЯ ДО БІБЛІОТЕКИ","ІІ. КОРИСТУВАЧІ, ВІДВІДУВАННЯ, ЗВЕРНЕННЯ ДО БІБЛІОТЕКИ","ІІ. КОРИСТУВАЧІ, ВІДВІДУВАННЯ, ЗВЕРНЕННЯ ДО БІБЛІОТЕКИ","ІІ. КОРИСТУВАЧІ, ВІДВІДУВАННЯ, ЗВЕРНЕННЯ ДО БІБЛІОТЕКИ","ІІ. КОРИСТУВАЧІ, ВІДВІДУВАННЯ, ЗВЕРНЕННЯ ДО БІБЛІОТЕКИ","ІІ. КОРИСТУВАЧІ, ВІДВІДУВАННЯ, ЗВЕРНЕННЯ ДО БІБЛІОТЕКИ","ІІ. КОРИСТУВАЧІ, ВІДВІДУВАННЯ, ЗВЕРНЕННЯ ДО БІБЛІОТЕКИ","ІІ. КОРИСТУВАЧІ, ВІДВІДУВАННЯ, ЗВЕРНЕННЯ ДО БІБЛІОТЕКИ","ІІ. КОРИСТУВАЧІ, ВІДВІДУВАННЯ, ЗВЕРНЕННЯ ДО БІБЛІОТЕКИ","ІІ. КОРИСТУВАЧІ, ВІДВІДУВАННЯ, ЗВЕРНЕННЯ ДО БІБЛІОТЕКИ","ІІ. КОРИСТУВАЧІ, ВІДВІДУВАННЯ, ЗВЕРНЕННЯ ДО БІБЛІОТЕКИ","ІІ. КОРИСТУВАЧІ, ВІДВІДУВАННЯ, ЗВЕРНЕННЯ ДО БІБЛІОТЕКИ","ІІ. КОРИСТУВАЧІ, ВІДВІДУВАННЯ, ЗВЕРНЕННЯ ДО БІБЛІОТЕКИ","ІІ. КОРИСТУВАЧІ, ВІДВІДУВАННЯ, ЗВЕРНЕННЯ ДО БІБЛІОТЕКИ","ІІ. КОРИСТУВАЧІ, ВІДВІДУВАННЯ, ЗВЕРНЕННЯ ДО БІБЛІОТЕКИ","ІІ. КОРИСТУВАЧІ, ВІДВІДУВАННЯ, ЗВЕРНЕННЯ ДО БІБЛІОТЕКИ","ІІ. КОРИСТУВАЧІ, ВІДВІДУВАННЯ, ЗВЕРНЕННЯ ДО БІБЛІОТЕКИ","ІІ. КОРИСТУВАЧІ, ВІДВІДУВАННЯ, ЗВЕРНЕННЯ ДО БІБЛІОТЕКИ","ІІ. КОРИСТУВАЧІ, ВІДВІДУВАННЯ, ЗВЕРНЕННЯ ДО БІБЛІОТЕКИ","ІІ. КОРИСТУВАЧІ, ВІДВІДУВАННЯ, ЗВЕРНЕННЯ ДО БІБЛІОТЕКИ","ІІ. КОРИСТУВАЧІ, ВІДВІДУВАННЯ, ЗВЕРНЕННЯ ДО БІБЛІОТЕКИ","ІІ. КОРИСТУВАЧІ, ВІДВІДУВАННЯ, ЗВЕРНЕННЯ ДО БІБЛІОТЕКИ","ІІ. КОРИСТУВАЧІ, ВІДВІДУВАННЯ, ЗВЕРНЕННЯ ДО БІБЛІОТЕКИ"]
["Населення зони\nобслуговування","Кількість користувачів протягом року (усього)","У т. ч. обслужених через нестаціонарні форми обслуговування","Кількість зареєстрованих користувачів, згідно з ЄРК","Кількість зареєстрованих користувачів за віком","Кількість зареєстрованих користувачів за віком","Кількість зареєстрованих користувачів за віком","Кількість зареєстрованих користувачів за віком","Кількість зареєстрованих користувачів за віком","Кількість зареєстрованих користувачів за віком","Кількість відвідувань\nбібліотеки","Кількість відвідувань масових\nзаходів, організованих\nбібліотекою","Кількість заходів\nдля користувачів\nв межах бібліотеки","Кількість заходів для\nкористувачів за межами\nбібліотеки","Кількість учасників\nзаходів в межах\nбібліотеки","Кількість учасників\nзаходів за\nмежами бібліотеки","Загальна кількість\nнавчань з ІТ\nдля відвідувачів","Загальна кількість осіб,\nякі пройшли навчання\nз ІТ у бібліотеках","Кількість осіб, які\nскористалися доступом до\nінтренету у бібліотеці","Бібліотека працює годин на тиждень","Бібліотека працює годин на тиждень","Бібліотека працює годин на тиждень","Бібліотека працює годин на тиждень","Бібліотека працює годин на тиждень","Група за оплатою праці керівних працівників бібліотек та централізованих бібліотечних систем","Група за оплатою праці керівних працівників бібліотек та централізованих бібліотечних систем","Група за оплатою праці керівних працівників бібліотек та централізованих бібліотечних систем","Група за оплатою праці керівних працівників бібліотек та централізованих бібліотечних систем","Група за оплатою праці керівних працівників бібліотек та централізованих бібліотечних систем","Група за оплатою праці керівних працівників бібліотек та централізованих бібліотечних систем"]
["Населення зони\nобслуговування","Кількість користувачів протягом року (усього)","У т. ч. обслужених через нестаціонарні форми обслуговування","Кількість зареєстрованих користувачів, згідно з ЄРК","до 7 років","від 7 до 15 років","від 15 до 18 років","від 18 до 22 років","від 22 до 60 років","від 60 років","Кількість відвідувань\nбібліотеки","Кількість відвідувань масових\nзаходів, організованих\nбібліотекою","Кількість заходів\nдля користувачів\nв межах бібліотеки","Кількість заходів для\nкористувачів за межами\nбібліотеки","Кількість учасників\nзаходів в межах\nбібліотеки","Кількість учасників\nзаходів за\nмежами бібліотеки","Загальна кількість\nнавчань з ІТ\nдля відвідувачів","Загальна кількість осіб,\nякі пройшли навчання\nз ІТ у бібліотеках","Кількість осіб, які\nскористалися доступом до\nінтренету у бібліотеці","до 10","від 11 до 20","від 21 до 30","від 31 до 40","більше 40","національна","1 група","2 група","3 група","4 група","поза групою"]
[1,2,3,4,5,6,7,8,9,10,11,12,13,14,15,16,17,18,19,20,21,22,23,24,25,26,27,28,29,30]
[40,41,42,43,44,45,46,47,48,49,50,51,52,53,54,55,56,57,58,59,60,61,62,63,64,65,66,67,68,69]
[]
[]
["ІІІ.ФОНДИ: НАДІЙШЛО, ВИБУЛО","ІІІ.ФОНДИ: НАДІЙШЛО, ВИБУЛО","ІІІ.ФОНДИ: НАДІЙШЛО, ВИБУЛО","ІІІ.ФОНДИ: НАДІЙШЛО, ВИБУЛО","ІІІ.ФОНДИ: НАДІЙШЛО, ВИБУЛО","ІІІ.ФОНДИ: НАДІЙШЛО, ВИБУЛО","ІІІ.ФОНДИ: НАДІЙШЛО, ВИБУЛО","ІІІ.ФОНДИ: НАДІЙШЛО, ВИБУЛО","ІІІ.ФОНДИ: НАДІЙШЛО, ВИБУЛО","ІІІ.ФОНДИ: НАДІЙШЛО, ВИБУЛО","ІІІ.ФОНДИ: НАДІЙШЛО, ВИБУЛО","ІІІ.ФОНДИ: НАДІЙШЛО, ВИБУЛО","ІІІ.ФОНДИ: НАДІЙШЛО, ВИБУЛО","ІІІ.ФОНДИ: НАДІЙШЛО, ВИБУЛО","ІІІ.ФОНДИ: НАДІЙШЛО, ВИБУЛО","ІІІ.ФОНДИ: НАДІЙШЛО, ВИБУЛО","ІІІ.ФОНДИ: НАДІЙШЛО, ВИБУЛО","ІІІ.ФОНДИ: НАДІЙШЛО, ВИБУЛО","ІІІ.ФОНДИ: НАДІЙШЛО, ВИБУЛО","ІІІ.ФОНДИ: НАДІЙШЛО, ВИБУЛО","ІІІ.ФОНДИ: НАДІЙШЛО, ВИБУЛО","ІІІ.ФОНДИ: НАДІЙШЛО, ВИБУЛО","ІІІ.ФОНДИ: НАДІЙШЛО, ВИБУЛО","ІІІ.ФОНДИ: НАДІЙШЛО, ВИБУЛО","ІІІ.ФОНДИ: НАДІЙШЛО, ВИБУЛО","ІІІ.ФОНДИ: НАДІЙШЛО, ВИБУЛО","ІІІ.ФОНДИ: НАДІЙШЛО, ВИБУЛО","ІІІ.ФОНДИ: НАДІЙШЛО, ВИБУЛО","ІІІ.ФОНДИ: НАДІЙШЛО, ВИБУЛО","ІІІ.ФОНДИ: НАДІЙШЛО, ВИБУЛО","ІІІ.ФОНДИ: НАДІЙШЛО, ВИБУЛО","ІІІ.ФОНДИ: НАДІЙШЛО, ВИБУЛО","ІІІ.ФОНДИ: НАДІЙШЛО, ВИБУЛО","ІІІ.ФОНДИ: НАДІЙШЛО, ВИБУЛО","ІІІ.ФОНДИ: НАДІЙШЛО, ВИБУЛО","ІІІ.ФОНДИ: НАДІЙШЛО, ВИБУЛО","ІІІ.ФОНДИ: НАДІЙШЛО, ВИБУЛО"]
["Надійшло документів до бібліотечного фонду","у т. ч. за видами","у т. ч. за видами","у т. ч. за видами","у т. ч. за видами","у т. ч. за видами","у т. ч. за мовами","у т. ч. за мовами","у т. ч. за мовами","у т. ч. за мовами","За джерелами комплектування","За джерелами комплектування","За джерелами комплектування","За джерелами комплектування","Вибуло документів з бібліотечного фонду","у т. ч. за видами","у т. ч. за видами","у т. ч. за видами","у т. ч. за видами","у т. ч. за видами","у т. ч. за мовами","у т. ч. за мовами","у т. ч. за мовами","у т. ч. за мовами","Фонд на кінець звітного року","у т. ч. за видами","у т. ч. за видами","у т. ч. за видами","у т. ч. за видами","у т. ч. за видами","у т. ч. за мовами","у т. ч. за мовами","у т. ч. за мовами","у т. ч. за мовами","Фонд рідкісних та цінних книг","Кількість книжкових пам'яток","Кількість колекцій"]
["Надійшло документів до бібліотечного фонду","книги","періодичні видання","аудіовізуальні матеріали","електронні видання","Інші","українською","російською","мовами нацменшин","іноземними","Документів за Державними, \nмісцевими програмами","Придбано документів","Обов'язковий примірник","Інші джерела","Вибуло документів з бібліотечного фонду","книги","періодичні видання","аудіовізуальні матеріали","електронні видання","інші","українською","російською","мовами нацменшин","іноземними","Фонд на кінець звітного року","книги","періодичні видання","аудіовізуальні матеріали","електронні видання","інші","українською","російською","мовами нацменшин","іноземними","Фонд рідкісних та цінних книг","Кількість книжкових пам'яток","Кількість колекцій"]
[1,2,3,4,5,6,7,8,9,10,11,12,13,14,15,16,17,18,19,20,21,22,23,24,25,26,27,28,29,30,31,32,33,34,35,36,37]
[70,71,72,73,74,75,76,77,78,79,80,81,82,83,84,85,86,87,88,89,90,91,92,93,94,95,96,97,98,99,100,101,102,103,104,105,106]
[]
[]
["IV. ВИДАЧА","IV. ВИДАЧА","IV. ВИДАЧА","IV. ВИДАЧА","IV. ВИДАЧА","IV. ВИДАЧА","IV. ВИДАЧА","IV. ВИДАЧА","IV. ВИДАЧА","IV. ВИДАЧА","IV. ВИДАЧА","IV. ВИДАЧА","IV. ВИДАЧА","IV. ВИДАЧА","IV. ВИДАЧА","IV. ВИДАЧА","IV. ВИДАЧА","IV. ВИДАЧА","IV. ВИДАЧА","IV. ВИДАЧА"]
["Видача документів (усього)","у т. ч. за видами видань","у т. ч. за видами видань","у т. ч. за видами видань","у т. ч. за видами видань","у т. ч. за видами видань","у т. ч. за мовами","у т. ч. за мовами","у т. ч. за мовами","у т. ч. за мовами","у т. ч. видано примірників дітям до 15 років","у т. ч. видано примірників дітям до 15 років","у т. ч. видано примірників дітям до 15 років","у т. ч. видано примірників дітям до 15 років","у т. ч. видано примірників дітям до 15 років","у т. ч. видано примірників дітям до 15 років","у т. ч. видано примірників дітям до 15 років","у т. ч. видано примірників дітям до 15 років","у т. ч. видано примірників дітям до 15 років","у т. ч. видано примірників дітям до 15 років"]
["Видача документів (усього)","книги","періодичні видання","аудіовізуальні матеріали","електронні видання","інші","українською","російською","мовами нацменшин","іноземними","Усього","у т. ч. за видами","у т. ч. за видами","у т. ч. за видами","у т. ч. за видами","у т. ч. за видами","у т. ч. за мовами","у т. ч. за мовами","у т. ч. за мовами","у т. ч. за мовами"]
["Видача документів (усього)","книги","періодичні видання","аудіовізуальні матеріали","електронні видання","інші","українською","російською","мовами нацменшин","іноземними","Усього","книги","періодичні видання","аудіовізуальні матеріали","електронні видання","інші","українською","російською","мовами нацменшин","іноземними"]
[1,2,3,4,5,6,7,8,9,10,11,12,13,14,15,16,17,18,19,20]
[107,108,109,110,111,112,113,114,115,116,117,118,119,120,121,122,123,124,125,126]
[]
[]
["V. EЛЕКТРОННІ РЕСУРСИ","V. EЛЕКТРОННІ РЕСУРСИ","V. EЛЕКТРОННІ РЕСУРСИ","V. EЛЕКТРОННІ РЕСУРСИ","V. EЛЕКТРОННІ РЕСУРСИ","V. EЛЕКТРОННІ РЕСУРСИ","V. EЛЕКТРОННІ РЕСУРСИ","V. EЛЕКТРОННІ РЕСУРСИ","V. EЛЕКТРОННІ РЕСУРСИ","V. EЛЕКТРОННІ РЕСУРСИ","V. EЛЕКТРОННІ РЕСУРСИ"]
["Кількість власних  веб-сайтів","Інтернет-адреси власних \nвеб-сайтів","Кількість звернень до власних \nвеб-сайтів","Кількість блогів, сторінок у \nсоціальних мережах","Обсяг ЕК","Кількість власних  Баз даних","Обсяг власних БД","Обсяг електронної (цифрової) \nбібліотеки","з них документів, доступ до яких \nможливий через мережу Інтернет","Кількість віддалених \nліцензованих ресурсів","Кількість звернень до віддалених \nліцензованих ресурсів"]
[1,2,3,4,5,6,7,8,9,10,11]
[127,128,129,130,131,132,133,134,135,136,137]
[]
[]
["VI. ДОВІДКОВО-ІНФОРМАЦІЙНЕ ОБСЛУГОВУВАННЯ. \nМІЖБІБЛІОТЕЧНИЙ АБОНЕМЕНТ","VI. ДОВІДКОВО-ІНФОРМАЦІЙНЕ ОБСЛУГОВУВАННЯ. \nМІЖБІБЛІОТЕЧНИЙ АБОНЕМЕНТ","VI. ДОВІДКОВО-ІНФОРМАЦІЙНЕ ОБСЛУГОВУВАННЯ. \nМІЖБІБЛІОТЕЧНИЙ АБОНЕМЕНТ","VI. ДОВІДКОВО-ІНФОРМАЦІЙНЕ ОБСЛУГОВУВАННЯ. \nМІЖБІБЛІОТЕЧНИЙ АБОНЕМЕНТ","VI. ДОВІДКОВО-ІНФОРМАЦІЙНЕ ОБСЛУГОВУВАННЯ. \nМІЖБІБЛІОТЕЧНИЙ АБОНЕМЕНТ"]
["Кількість виконаних довідок","у т. ч. віртуальних","Кількість абонентів МБА, ММБА","Кількість виданих документів іншим \nбібліотекам через МБА, ММБА","Кількість отриманих документів з \nінших бібліотек"]
[1,2,3,4,5]
[138,139,140,141,142]
[]
[]
["VII. ПЕРСОНАЛ БІБЛІОТЕКИ","VII. ПЕРСОНАЛ БІБЛІОТЕКИ","VII. ПЕРСОНАЛ БІБЛІОТЕКИ","VII. ПЕРСОНАЛ БІБЛІОТЕКИ","VII. ПЕРСОНАЛ БІБЛІОТЕКИ","VII. ПЕРСОНАЛ БІБЛІОТЕКИ","VII. ПЕРСОНАЛ БІБЛІОТЕКИ","VII. ПЕРСОНАЛ БІБЛІОТЕКИ","VII. ПЕРСОНАЛ БІБЛІОТЕКИ","VII. ПЕРСОНАЛ БІБЛІОТЕКИ","VII. ПЕРСОНАЛ БІБЛІОТЕКИ","VII. ПЕРСОНАЛ БІБЛІОТЕКИ","VII. ПЕРСОНАЛ БІБЛІОТЕКИ","VII. ПЕРСОНАЛ БІБЛІОТЕКИ","VII. ПЕРСОНАЛ БІБЛІОТЕКИ","VII. ПЕРСОНАЛ БІБЛІОТЕКИ","VII. ПЕРСОНАЛ БІБЛІОТЕКИ","VII. ПЕРСОНАЛ БІБЛІОТЕКИ","VII. ПЕРСОНАЛ БІБЛІОТЕКИ"]
["Загальна кількість працівників","Кількість бібліотечних фахівців","з них мають освіту","з них мають освіту","з них мають освіту","з них мають освіту","Кількість бібліотечних фахівців, які мають стаж бібліотечної роботи","Кількість бібліотечних фахівців, які мають стаж бібліотечної роботи","Кількість бібліотечних фахівців, які мають стаж бібліотечної роботи","Кількість бібліотечних фахівців, які мають стаж бібліотечної роботи","Віковий склад кадрів","Віковий склад кадрів","Віковий склад кадрів","Віковий склад кадрів","Із загальної кількості бібліотечних фахівців працюють","Із загальної кількості бібліотечних фахівців працюють","Кількість бібліотечних фахівців, які \nпідвищили свою кваліфікацію \n(протягом року)","Загальна кількість навчань з ІТ для \nбібліотекарів","Кількість бібліотекарів, для яких \nорганізовано навчання у тренінгових \nцентрах"]
["Загальна кількість працівників","Кількість бібліотечних фахівців","повну вищу","у т. ч. спеціальну","базову вищу","у т. ч. спеціальну","до 3 років","понад 3 роки","понад 10 років","понад 20 років","до 30 років","від 30 до 45 років","від 45 до 60 років","від 60 років","повний робочий день","неповний робочий день","Кількість бібліотечних фахівців, які \nпідвищили свою кваліфікацію \n(протягом року)","Загальна кількість навчань з ІТ для \nбібліотекарів","Кількість бібліотекарів, для яких \nорганізовано навчання у тренінгових \nцентрах"]
[1,2,3,4,5,6,7,8,9,10,11,12,13,14,15,16,17,18,19]
[143,144,145,146,147,148,149,150,151,152,153,154,155,156,157,158,159,160,161]
[]
[]
["VIII. ФІНАНСУВАННЯ","VIII. ФІНАНСУВАННЯ","VIII. ФІНАНСУВАННЯ","VIII. ФІНАНСУВАННЯ","VIII. ФІНАНСУВАННЯ","VIII. ФІНАНСУВАННЯ","VIII. ФІНАНСУВАННЯ","VIII. ФІНАНСУВАННЯ","VIII. ФІНАНСУВАННЯ","VIII. ФІНАНСУВАННЯ","VIII. ФІНАНСУВАННЯ","VIII. ФІНАНСУВАННЯ","VIII. ФІНАНСУВАННЯ","VIII. ФІНАНСУВАННЯ","VIII. ФІНАНСУВАННЯ","VIII. ФІНАНСУВАННЯ","VIII. ФІНАНСУВАННЯ","VIII. ФІНАНСУВАННЯ","VIII. ФІНАНСУВАННЯ","VIII. ФІНАНСУВАННЯ"]
["Загальна сума надходжень \nкоштів за рік","Кошти загального фонду","Кошти загального фонду","Кошти загального фонду","Кошти загального фонду","Кошти загального фонду","Кошти загального фонду","Кошти спеціального фонду","Кошти спеціального фонду","Кошти спеціального фонду","Кошти спеціального фонду","Викорис-\nтання коштів, усього","з них","з них","з них","з них","з них","з них","з них","Залишок коштів спеціаль\nного фонду на кінець року"]
["Загальна сума надходжень \nкоштів за рік","усього","з них","з них","з них","з них","з них","усього","з них","з них","з них","Викорис-\nтання коштів, усього","на оплату праці","на комплектування \nфонду","у т. ч. за рахунок коштів \nзагального фонду","на поточний і \nкапітальний ремонти","у т. ч. за рахунок коштів \nзагального фонду","на придбання основних \nзасобів","у т. ч. за рахунок коштів \nзагального фонду","Залишок коштів спеціаль\nного фонду на кінець року"]
["Загальна сума надходжень \nкоштів за рік","усього","на оплату праці","на комплектування","у т. ч. на періодичні \nвидання","на поточний і \nкапітальний ремонти","на придбання \nосновних засобів","усього","надання платних \nпослуг","благодійні, \nспонсорські внески","інші джерела","Викорис-\nтання коштів, усього","на оплату праці","на комплектування \nфонду","у т. ч. за рахунок коштів \nзагального фонду","на поточний і \nкапітальний ремонти","у т. ч. за рахунок коштів \nзагального фонду","на придбання основних \nзасобів","у т. ч. за рахунок коштів \nзагального фонду","Залишок коштів спеціаль\nного фонду на кінець року"]
[1,2,3,4,5,6,7,8,9,10,11,12,13,14,15,16,17,18,19,20]
[162,163,164,165,166,167,168,169,170,171,172,173,174,175,176,177,178,179,180,181]

{"sheet":"Звіт","index":2,"n_rows":57,"n_cols":37,"rows_kept":57,"cut":false,"hidden":false,"merged":[[53,17,54,17],[53,18,54,18],[54,8,54,8],[54,9,54,9],[54,10,54,10],[54,2,54,2],[54,3,54,3],[54,4,54,4],[54,5,54,5],[54,6,54,6],[53,13,54,13],[52,1,52,6],[52,7,52,10],[52,11,54,11],[52,12,52,18],[46,13,46,13],[46,14,46,14],[46,15,46,15],[51,0,51,19],[52,0,54,0],[46,2,46,2],[46,3,46,3],[46,4,46,4],[46,5,46,5],[46,6,46,6],[46,7,46,7],[52,19,54,19],[53,1,54,1],[53,2,53,6],[53,7,54,7],[53,8,53,10],[53,12,54,12],[53,14,54,14],[53,15,54,15],[53,16,54,16],[44,0,44,18],[45,0,46,0],[45,1,46,1],[45,2,45,5],[45,6,45,9],[45,10,45,13],[45,14,45,15],[45,16,46,16],[45,17,46,17],[45,18,46,18],[46,8,46,8],[46,9,46,9],[46,10,46,10],[46,11,46,11],[46,12,46,12],[33,6,33,6],[33,7,33,7],[33,8,33,8],[38,0,38,4],[39,0,39,0],[39,1,39,1],[39,2,39,2],[39,3,39,3],[39,4,39,4],[19,33,19,33],[24,0,24,19],[25,0,27,0],[25,1,25,5],[25,6,25,9],[25,10,25,19],[26,1,27,1],[33,9,33,9],[33,10,33,10],[26,11,26,15],[26,16,26,19],[27,11,27,11],[27,12,27,12],[27,13,27,13],[27,14,27,14],[27,15,27,15],[27,16,27,16],[32,0,32,10],[33,0,33,0],[33,1,33,1],[33,2,33,2],[33,3,33,3],[33,4,33,4],[33,5,33,5],[19,29,19,29],[19,30,19,30],[19,17,19,17],[19,18,19,18],[19,19,19,19],[19,20,19,20],[26,2,27,2],[26,3,27,3],[26,4,27,4],[26,5,27,5],[26,6,27,6],[26,7,27,7],[27,17,27,17],[27,18,27,18],[27,19,27,19],[19,22,19,22],[19,23,19,23],[19,25,19,25],[19,26,19,26],[19,27,19,27],[26,8,27,8],[26,9,27,9],[26,10,27,10],[19,28,19,28],[17,0,17,36],[18,0,19,0],[18,1,18,5],[18,6,18,9],[18,10,18,13],[18,14,19,14],[19,9,19,9],[19,10,19,10],[19,11,19,11],[19,12,19,12],[19,13,19,13],[19,15,19,15],[19,21,19,21],[18,36,19,36],[19,1,19,1],[19,2,19,2],[19,3,19,3],[19,4,19,4],[19,5,19,5],[19,6,19,6],[19,7,19,7],[19,8,19,8],[19,31,19,31],[19,32,19,32],[12,23,12,23],[12,24,12,24],[12,25,12,25],[12,26,12,26],[18,35,19,35],[11,24,11,29],[12,4,12,4],[12,5,12,5],[12,6,12,6],[12,7,12,7],[12,8,12,8],[12,9,12,9],[12,19,12,19],[12,20,12,20],[18,15,18,19],[18,20,18,23],[18,24,19,24],[18,25,18,29],[18,30,18,33],[18,34,19,34],[19,16,19,16],[12,28,12,28],[12,29,12,29],[12,30,12,30],[10,0,10,30],[5,21,5,21],[5,22,5,22],[5,23,5,23],[5,24,5,24],[5,25,5,25],[11,10,12,10],[11,11,12,11],[11,12,12,12],[11,13,12,13],[11,14,12,14],[11,0,12,0],[11,1,12,1],[11,2,12,2],[11,3,12,3],[11,4,11,9],[12,27,12,27],[11,15,12,15],[11,16,12,16],[11,17,12,17],[11,18,12,18],[11,19,11,23],[12,21,12,21],[12,22,12,22],[0,0,0,5],[2,0,2,29],[3,0,5,0],[3,1,4,2],[3,3,5,3],[5,14,5,14],[5,17,5,17],[5,18,5,18],[5,19,5,19],[5,20,5,20],[5,9,5,9],[5,10,5,10],[5,11,5,11],[5,12,5,12],[5,13,5,13],[5,26,5,26],[5,27,5,27],[5,28,5,28],[5,29,5,29],[5,1,5,1],[3,4,5,4],[3,5,3,15],[3,16,5,16],[3,17,4,19],[3,20,4,29],[4,5,4,6],[4,7,4,10],[4,11,4,12],[4,13,4,14],[4,15,5,15],[5,2,5,2],[5,5,5,5],[5,6,5,6],[5,7,5,7],[5,8,5,8]]}
["Кількість бібліотек в звіті:","Кількість бібліотек в звіті:","Кількість бібліотек в звіті:","Кількість бібліотек в звіті:","Кількість бібліотек в звіті:","Кількість бібліотек в звіті:",1]
[]
["І.МАТЕРІАЛЬНО-ТЕХНІЧНА БАЗА","І.МАТЕРІАЛЬНО-ТЕХНІЧНА БАЗА","І.МАТЕРІАЛЬНО-ТЕХНІЧНА БАЗА","І.МАТЕРІАЛЬНО-ТЕХНІЧНА БАЗА","І.МАТЕРІАЛЬНО-ТЕХНІЧНА БАЗА","І.МАТЕРІАЛЬНО-ТЕХНІЧНА БАЗА","І.МАТЕРІАЛЬНО-ТЕХНІЧНА БАЗА","І.МАТЕРІАЛЬНО-ТЕХНІЧНА БАЗА","І.МАТЕРІАЛЬНО-ТЕХНІЧНА БАЗА","І.МАТЕРІАЛЬНО-ТЕХНІЧНА БАЗА","І.МАТЕРІАЛЬНО-ТЕХНІЧНА БАЗА","І.МАТЕРІАЛЬНО-ТЕХНІЧНА БАЗА","І.МАТЕРІАЛЬНО-ТЕХНІЧНА БАЗА","І.МАТЕРІАЛЬНО-ТЕХНІЧНА БАЗА","І.МАТЕРІАЛЬНО-ТЕХНІЧНА БАЗА","І.МАТЕРІАЛЬНО-ТЕХНІЧНА БАЗА","І.МАТЕРІАЛЬНО-ТЕХНІЧНА БАЗА","І.МАТЕРІАЛЬНО-ТЕХНІЧНА БАЗА","І.МАТЕРІАЛЬНО-ТЕХНІЧНА БАЗА","І.МАТЕРІАЛЬНО-ТЕХНІЧНА БАЗА","І.МАТЕРІАЛЬНО-ТЕХНІЧНА БАЗА","І.МАТЕРІАЛЬНО-ТЕХНІЧНА БАЗА","І.МАТЕРІАЛЬНО-ТЕХНІЧНА БАЗА","І.МАТЕРІАЛЬНО-ТЕХНІЧНА БАЗА","І.МАТЕРІАЛЬНО-ТЕХНІЧНА БАЗА","І.МАТЕРІАЛЬНО-ТЕХНІЧНА БАЗА","І.МАТЕРІАЛЬНО-ТЕХНІЧНА БАЗА","І.МАТЕРІАЛЬНО-ТЕХНІЧНА БАЗА","І.МАТЕРІАЛЬНО-ТЕХНІЧНА БАЗА","І.МАТЕРІАЛЬНО-ТЕХНІЧНА БАЗА"]
["Загальна площа\nприміщень (кв. м)","у т. ч. ","у т. ч. ","Кількість бібліотечних\nпунктів","Кількість бібліотечних\nприміщень","Характеристика приміщень бібліотеки (од.)","Характеристика приміщень бібліотеки (од.)","Характеристика приміщень бібліотеки (од.)","Характеристика приміщень бібліотеки (од.)","Характеристика приміщень бібліотеки (од.)","Характеристика приміщень бібліотеки (од.)","Характеристика приміщень бібліотеки (од.)","Характеристика приміщень бібліотеки (од.)","Характеристика приміщень бібліотеки (од.)","Характеристика приміщень бібліотеки (од.)","Характеристика приміщень бібліотеки (од.)","Кількість\nпосадочних\nмісць\nдля\nкористувачів ","Засоби зв'язку","Засоби зв'язку","Засоби зв'язку","Кількість технічних засобів (од.)","Кількість технічних засобів (од.)","Кількість технічних засобів (од.)","Кількість технічних засобів (од.)","Кількість технічних засобів (од.)","Кількість технічних засобів (од.)","Кількість технічних засобів (од.)","Кількість технічних засобів (од.)","Кількість технічних засобів (од.)","Кількість технічних засобів (од.)"]
["Загальна площа\nприміщень (кв. м)","у т. ч. ","у т. ч. ","Кількість бібліотечних\nпунктів","Кількість бібліотечних\nприміщень","Майнова ","Майнова ","Технічна","Технічна","Технічна","Технічна","Опалення","Опалення","Освітлення","Освітлення","приміщення\nобладнане\nпандусом,\nпідйомником","Кількість\nпосадочних\nмісць\nдля\nкористувачів ","Засоби зв'язку","Засоби зв'язку","Засоби зв'язку","Кількість технічних засобів (од.)","Кількість технічних засобів (од.)","Кількість технічних засобів (од.)","Кількість технічних засобів (од.)","Кількість технічних засобів (од.)","Кількість технічних засобів (од.)","Кількість технічних засобів (од.)","Кількість технічних засобів (од.)","Кількість технічних засобів (од.)","Кількість технічних засобів (од.)"]
["Загальна площа\nприміщень (кв. м)","для зберігання\nфондів","для\nобслуговування\nкористувачів","Кількість бібліотечних\nпунктів","Кількість бібліотечних\nприміщень","на праві\nоперативного\nуправління","орендоване"," потребує\nкапітального\nремонту","аварійне","не\nпотребує\nремонту","потребує\nпоточного\nремонту","опалювані\nприміщення","неопалювані\nприміщення","приміщення з\nосвітленням","приміщення\nбез\nосвітлення","приміщення\nобладнане\nпандусом,\nпідйомником","Кількість\nпосадочних\nмісць\nдля\nкористувачів ","Кількість\nномерів\nстаціонарного\nтелефонного\nзв'язку","Кількість\nфаксів","Кількість\nадрес\nелектронної\nпошти","комп'ютерів","у т. ч.\nкомп'ютерів\nдля\nкористувачів"," комп'ютерів з\nдоступом\nдо\nмережі\nІнтернет"," у т. ч.\nкомп'ютерів\nдля\nкористувачів з\nдоступом\nдо мережі\nІнтернет","у т. ч. комп'ютерів з\nтифлообладнанням\nта спеціалізованим\nпрограмним\nустаткуванням\n для сліпих та\nслабозорих","копіювально-\nрозмножувальної\nтехніки","мультимедійного\nобладнання","у т. ч.\nелектронних\nпристроїв для\nчитання","транспортних\nзасобів","у т. ч.\nспеціалізованих\nтранспортних\nзасобів\nбібліобус"]
[1,2,3,4,5,6,7,8,9,10,11,12,13,14,15,16,17,18,19,20,21,22,23,24,25,26,27,28,29,30]
[148,48,100,0,1,0,1,0,0,1,0,1,0,1,0,0,80,0,0,3,18,5,18,5,0,1,5,0,0,0]
[]
[]
["ІІ. КОРИСТУВАЧІ, ВІДВІДУВАННЯ, ЗВЕРНЕННЯ ДО БІБЛІОТЕКИ","ІІ. КОРИСТУВАЧІ, ВІДВІДУВАННЯ, ЗВЕРНЕННЯ ДО БІБЛІОТЕКИ","ІІ. КОРИСТУВАЧІ, ВІДВІДУВАННЯ, ЗВЕРНЕННЯ ДО БІБЛІОТЕКИ","ІІ. КОРИСТУВАЧІ, ВІДВІДУВАННЯ, ЗВЕРНЕННЯ ДО БІБЛІОТЕКИ","ІІ. КОРИСТУВАЧІ, ВІДВІДУВАННЯ, ЗВЕРНЕННЯ ДО БІБЛІОТЕКИ","ІІ. КОРИСТУВАЧІ, ВІДВІДУВАННЯ, ЗВЕРНЕННЯ ДО БІБЛІОТЕКИ","ІІ. КОРИСТУВАЧІ, ВІДВІДУВАННЯ, ЗВЕРНЕННЯ ДО БІБЛІОТЕКИ","ІІ. КОРИСТУВАЧІ, ВІДВІДУВАННЯ, ЗВЕРНЕННЯ ДО БІБЛІОТЕКИ","ІІ. КОРИСТУВАЧІ, ВІДВІДУВАННЯ, ЗВЕРНЕННЯ ДО БІБЛІОТЕКИ","ІІ. КОРИСТУВАЧІ, ВІДВІДУВАННЯ, ЗВЕРНЕННЯ ДО БІБЛІОТЕКИ","ІІ. КОРИСТУВАЧІ, ВІДВІДУВАННЯ, ЗВЕРНЕННЯ ДО БІБЛІОТЕКИ","ІІ. КОРИСТУВАЧІ, ВІДВІДУВАННЯ, ЗВЕРНЕННЯ ДО БІБЛІОТЕКИ","ІІ. КОРИСТУВАЧІ, ВІДВІДУВАННЯ, ЗВЕРНЕННЯ ДО БІБЛІОТЕКИ","ІІ. КОРИСТУВАЧІ, ВІДВІДУВАННЯ, ЗВЕРНЕННЯ ДО БІБЛІОТЕКИ","ІІ. КОРИСТУВАЧІ, ВІДВІДУВАННЯ, ЗВЕРНЕННЯ ДО БІБЛІОТЕКИ","ІІ. КОРИСТУВАЧІ, ВІДВІДУВАННЯ, ЗВЕРНЕННЯ ДО БІБЛІОТЕКИ","ІІ. КОРИСТУВАЧІ, ВІДВІДУВАННЯ, ЗВЕРНЕННЯ ДО БІБЛІОТЕКИ","ІІ. КОРИСТУВАЧІ, ВІДВІДУВАННЯ, ЗВЕРНЕННЯ ДО БІБЛІОТЕКИ","ІІ. КОРИСТУВАЧІ, ВІДВІДУВАННЯ, ЗВЕРНЕННЯ ДО БІБЛІОТЕКИ","ІІ. КОРИСТУВАЧІ, ВІДВІДУВАННЯ, ЗВЕРНЕННЯ ДО БІБЛІОТЕКИ","ІІ. КОРИСТУВАЧІ, ВІДВІДУВАННЯ, ЗВЕРНЕННЯ ДО БІБЛІОТЕКИ","ІІ. КОРИСТУВАЧІ, ВІДВІДУВАННЯ, ЗВЕРНЕННЯ ДО БІБЛІОТЕКИ","ІІ. КОРИСТУВАЧІ, ВІДВІДУВАННЯ, ЗВЕРНЕННЯ ДО БІБЛІОТЕКИ","ІІ. КОРИСТУВАЧІ, ВІДВІДУВАННЯ, ЗВЕРНЕННЯ ДО БІБЛІОТЕКИ","ІІ. КОРИСТУВАЧІ, ВІДВІДУВАННЯ, ЗВЕРНЕННЯ ДО БІБЛІОТЕКИ","ІІ. КОРИСТУВАЧІ, ВІДВІДУВАННЯ, ЗВЕРНЕННЯ ДО БІБЛІОТЕКИ","ІІ. КОРИСТУВАЧІ, ВІДВІДУВАННЯ, ЗВЕРНЕННЯ ДО БІБЛІОТЕКИ","ІІ. КОРИСТУВАЧІ, ВІДВІДУВАННЯ, ЗВЕРНЕННЯ ДО БІБЛІОТЕКИ","ІІ. КОРИСТУВАЧІ, ВІДВІДУВАННЯ, ЗВЕРНЕННЯ ДО БІБЛІОТЕКИ","ІІ. КОРИСТУВАЧІ, ВІДВІДУВАННЯ, ЗВЕРНЕННЯ ДО БІБЛІОТЕКИ","ІІ. КОРИСТУВАЧІ, ВІДВІДУВАННЯ, ЗВЕРНЕННЯ ДО БІБЛІОТЕКИ"]
["Населення\nзони\nобслуговування","Кількість користувачів протягом року (усього) ","У т. ч. обслужених через нестаціонарні форми обслуговування","Кількість зареєстрованих користувачів, згідно з ЄРК ","Кількість зареєстрованих користувачів за віком","Кількість зареєстрованих користувачів за віком","Кількість зареєстрованих користувачів за віком","Кількість зареєстрованих користувачів за віком","Кількість зареєстрованих користувачів за віком","Кількість зареєстрованих користувачів за віком","Кількість\nвідвідувань\nбібліотеки ","Кількість\nвідвідувань\nмасових\nзаходів,\nорганізованих\nбібліотекою ","Кількість\nзаходів\nдля\nкористувачів\nв межах\nбібліотеки","Кількість\nзаходів\nдля\nкористувачів\nза межами\nбібліотеки","Кількість\nучасників\nзаходів\nв межах\nбібліотеки","Кількість\nучасників\nзаходів за\nмежами\nбібліотеки","Загальна кількість\nнавчань з ІТ\nдля відвідувачів","Загальна кількість осіб,\nякі пройшли навчання\nз ІТ у бібліотеках","Кількість осіб, які\nскористалися доступом до\nінтернет у бібліотеці","Бібліотека працює годин на тиждень","Бібліотека працює годин на тиждень","Бібліотека працює годин на тиждень","Бібліотека працює годин на тиждень","Бібліотека працює годин на тиждень","Група за оплатою праці керівних працівників бібліотек та централізованих бібліотечних систем ","Група за оплатою праці керівних працівників бібліотек та централізованих бібліотечних систем ","Група за оплатою праці керівних працівників бібліотек та централізованих бібліотечних систем ","Група за оплатою праці керівних працівників бібліотек та централізованих бібліотечних систем ","Група за оплатою праці керівних працівників бібліотек та централізованих бібліотечних систем ","Група за оплатою праці керівних працівників бібліотек та централізованих бібліотечних систем "]
["Населення\nзони\nобслуговування","Кількість користувачів протягом року (усього) ","У т. ч. обслужених через нестаціонарні форми обслуговування","Кількість зареєстрованих користувачів, згідно з ЄРК "," до 7 років","від 7 до 15 років","від 15 до 18 років","від 18 до 22 років","від 22 до 60 років  ","від 60 років","Кількість\nвідвідувань\nбібліотеки ","Кількість\nвідвідувань\nмасових\nзаходів,\nорганізованих\nбібліотекою ","Кількість\nзаходів\nдля\nкористувачів\nв межах\nбібліотеки","Кількість\nзаходів\nдля\nкористувачів\nза межами\nбібліотеки","Кількість\nучасників\nзаходів\nв межах\nбібліотеки","Кількість\nучасників\nзаходів за\nмежами\nбібліотеки","Загальна кількість\nнавчань з ІТ\nдля відвідувачів","Загальна кількість осіб,\nякі пройшли навчання\nз ІТ у бібліотеках","Кількість осіб, які\nскористалися доступом до\nінтернет у бібліотеці","до 10","від 11 до 20","від 21 до 30","від 31 до\n40 включно","більше 40","національна","1 група","2 група","3 група","4 група","поза групою","Кількість годин, \nфактично відпрацьованих\n\nбібліотекою"]
[1,2,3,4,5,6,7,8,9,10,11,12,13,14,15,16,17,18,19,20,21,22,23,24,25,26,27,28,29,30,31]
[0,9774,0,2795,19,350,380,568,1401,77,100883,5660,267,60,3076,2584,74,440,13662,0,0,0,0,1,0,0,1,0,0,0,3679]
[]
[]
["ІІІ.ФОНДИ: НАДІЙШЛО, ВИБУЛО","ІІІ.ФОНДИ: НАДІЙШЛО, ВИБУЛО","ІІІ.ФОНДИ: НАДІЙШЛО, ВИБУЛО","ІІІ.ФОНДИ: НАДІЙШЛО, ВИБУЛО","ІІІ.ФОНДИ: НАДІЙШЛО, ВИБУЛО","ІІІ.ФОНДИ: НАДІЙШЛО, ВИБУЛО","ІІІ.ФОНДИ: НАДІЙШЛО, ВИБУЛО","ІІІ.ФОНДИ: НАДІЙШЛО, ВИБУЛО","ІІІ.ФОНДИ: НАДІЙШЛО, ВИБУЛО","ІІІ.ФОНДИ: НАДІЙШЛО, ВИБУЛО","ІІІ.ФОНДИ: НАДІЙШЛО, ВИБУЛО","ІІІ.ФОНДИ: НАДІЙШЛО, ВИБУЛО","ІІІ.ФОНДИ: НАДІЙШЛО, ВИБУЛО","ІІІ.ФОНДИ: НАДІЙШЛО, ВИБУЛО","ІІІ.ФОНДИ: НАДІЙШЛО, ВИБУЛО","ІІІ.ФОНДИ: НАДІЙШЛО, ВИБУЛО","ІІІ.ФОНДИ: НАДІЙШЛО, ВИБУЛО","ІІІ.ФОНДИ: НАДІЙШЛО, ВИБУЛО","ІІІ.ФОНДИ: НАДІЙШЛО, ВИБУЛО","ІІІ.ФОНДИ: НАДІЙШЛО, ВИБУЛО","ІІІ.ФОНДИ: НАДІЙШЛО, ВИБУЛО","ІІІ.ФОНДИ: НАДІЙШЛО, ВИБУЛО","ІІІ.ФОНДИ: НАДІЙШЛО, ВИБУЛО","ІІІ.ФОНДИ: НАДІЙШЛО, ВИБУЛО","ІІІ.ФОНДИ: НАДІЙШЛО, ВИБУЛО","ІІІ.ФОНДИ: НАДІЙШЛО, ВИБУЛО","ІІІ.ФОНДИ: НАДІЙШЛО, ВИБУЛО","ІІІ.ФОНДИ: НАДІЙШЛО, ВИБУЛО","ІІІ.ФОНДИ: НАДІЙШЛО, ВИБУЛО","ІІІ.ФОНДИ: НАДІЙШЛО, ВИБУЛО","ІІІ.ФОНДИ: НАДІЙШЛО, ВИБУЛО","ІІІ.ФОНДИ: НАДІЙШЛО, ВИБУЛО","ІІІ.ФОНДИ: НАДІЙШЛО, ВИБУЛО","ІІІ.ФОНДИ: НАДІЙШЛО, ВИБУЛО","ІІІ.ФОНДИ: НАДІЙШЛО, ВИБУЛО","ІІІ.ФОНДИ: НАДІЙШЛО, ВИБУЛО","ІІІ.ФОНДИ: НАДІЙШЛО, ВИБУЛО"]
["Надійшло документів до бібліотечного фонду","у т. ч. за видами","у т. ч. за видами","у т. ч. за видами","у т. ч. за видами","у т. ч. за видами","у т. ч. за мовами","у т. ч. за мовами","у т. ч. за мовами","у т. ч. за мовами","За джерелами комплектування","За джерелами комплектування","За джерелами комплектування","За джерелами комплектування","Вибуло документів з бібліотечного фонду ","у т. ч. за видами","у т. ч. за видами","у т. ч. за видами","у т. ч. за видами","у т. ч. за видами","у т. ч. за мовами","у т. ч. за мовами","у т. ч. за мовами","у т. ч. за мовами","Фонд на кінець звітного року ","у т. ч. за видами","у т. ч. за видами","у т. ч. за видами","у т. ч. за видами","у т. ч. за видами","у т. ч. за мовами","у т. ч. за мовами","у т. ч. за мовами","у т. ч. за мовами","Фонд рідкісних та цінних книг ","Кількість книжкових пам'яток  ","Кількість колекцій "]
["Надійшло документів до бібліотечного фонду"," книги","періодичні\nвидання","аудіовізуальні\nматеріали","електронні\nвидання","інші","українською","російською","мовами\nнацменшин","іноземними","документів\nза Державними,\nмісцевими\nпрограмами","придбано\nдокументів","обов'язковий\nпримірник","інші джерела","Вибуло документів з бібліотечного фонду ","книги","періодичні\nвидання","аудіовізуальні\nматеріали","електронні\nвидання","інші","українською","російською","мовами нацменшин","іноземними","Фонд на кінець звітного року ","книги","періодичні видання","аудіовізуальні матеріали","електронні видання","інші","українською","російською","мовами нацменшин","іноземними","Фонд рідкісних та цінних книг ","Кількість книжкових пам'яток  ","Кількість колекцій "]
[1,2,3,4,5,6,7,8,9,10,11,12,13,14,15,16,17,18,19,20,21,22,23,24,25,26,27,28,29,30,31,32,33,34,35,36,37]
[2445,2247,181,0,17,0,2292,135,0,18,930,0,20,1495,1010,0,1010,0,0,0,751,202,0,57,10958,10277,661,0,20,0,9097,1479,0,382,0,0,0]
[]
[]
["IV. ВИДАЧА","IV. ВИДАЧА","IV. ВИДАЧА","IV. ВИДАЧА","IV. ВИДАЧА","IV. ВИДАЧА","IV. ВИДАЧА","IV. ВИДАЧА","IV. ВИДАЧА","IV. ВИДАЧА","IV. ВИДАЧА","IV. ВИДАЧА","IV. ВИДАЧА","IV. ВИДАЧА","IV. ВИДАЧА","IV. ВИДАЧА","IV. ВИДАЧА","IV. ВИДАЧА","IV. ВИДАЧА","IV. ВИДАЧА"]
["Видача документів (усього)","у т. ч. за видами видань","у т. ч. за видами видань","у т. ч. за видами видань","у т. ч. за видами видань","у т. ч. за видами видань","у т. ч. за мовами","у т. ч. за мовами","у т. ч. за мовами","у т. ч. за мовами","у т. ч. видано примірників дітям до 15 років","у т. ч. видано примірників дітям до 15 років","у т. ч. видано примірників дітям до 15 років","у т. ч. видано примірників дітям до 15 років","у т. ч. видано примірників дітям до 15 років","у т. ч. видано примірників дітям до 15 років","у т. ч. видано примірників дітям до 15 років","у т. ч. видано примірників дітям до 15 років","у т. ч. видано примірників дітям до 15 років","у т. ч. видано примірників дітям до 15 років"]
["Видача документів (усього)","книги","періодичні видання","аудіовізуальні матеріали","електронні видання","інші","українською","російською","мовами нацменшин","іноземними","Усього","у т. ч. за видами","у т. ч. за видами","у т. ч. за видами","у т. ч. за видами","у т. ч. за видами","у т. ч. за мовами","у т. ч. за мовами","у т. ч. за мовами","у т. ч. за мовами"]
["Видача документів (усього)","книги","періодичні видання","аудіовізуальні матеріали","електронні видання","інші","українською","російською","мовами нацменшин","іноземними","Усього","книги","періодичні видання","аудіовізуальні матеріали","електронні видання","інші","українською","російською","мовами нацменшин","іноземними"]
[1,2,3,4,5,6,7,8,9,10,11,12,13,14,15,16,17,18,19,20]
[34174,26591,7583,0,0,0,26541,4233,0,3400,13693,10689,3004,0,0,0,10625,1720,0,1348]
[]
[]
["V. EЛЕКТРОННІ РЕСУРСИ","V. EЛЕКТРОННІ РЕСУРСИ","V. EЛЕКТРОННІ РЕСУРСИ","V. EЛЕКТРОННІ РЕСУРСИ","V. EЛЕКТРОННІ РЕСУРСИ","V. EЛЕКТРОННІ РЕСУРСИ","V. EЛЕКТРОННІ РЕСУРСИ","V. EЛЕКТРОННІ РЕСУРСИ","V. EЛЕКТРОННІ РЕСУРСИ","V. EЛЕКТРОННІ РЕСУРСИ","V. EЛЕКТРОННІ РЕСУРСИ"]
["Кількість власних  веб-сайтів ","Інтернет-адреси власних \nвеб-сайтів","Кількість звернень до власних \nвеб-сайтів  ","Кількість блогів, сторінок у \nсоціальних мережах","Обсяг ЕК","Кількість власних  Баз даних","Обсяг власних БД","Обсяг електронної (цифрової) \nбібліотеки","з них документів, доступ до яких \nможливий через мережу Інтернет","Кількість віддалених \nліцензованих ресурсів","Кількість звернень до віддалених \nліцензованих ресурсів"]
[1,2,3,4,5,6,7,8,9,10,11]
[1,0,13220,3,14661,1,14661,20,0,0,0]
[]
[]
["VI. ДОВІДКОВО-ІНФОРМАЦІЙНЕ ОБСЛУГОВУВАННЯ. \nМІЖБІБЛІОТЕЧНИЙ АБОНЕМЕНТ","VI. ДОВІДКОВО-ІНФОРМАЦІЙНЕ ОБСЛУГОВУВАННЯ. \nМІЖБІБЛІОТЕЧНИЙ АБОНЕМЕНТ","VI. ДОВІДКОВО-ІНФОРМАЦІЙНЕ ОБСЛУГОВУВАННЯ. \nМІЖБІБЛІОТЕЧНИЙ АБОНЕМЕНТ","VI. ДОВІДКОВО-ІНФОРМАЦІЙНЕ ОБСЛУГОВУВАННЯ. \nМІЖБІБЛІОТЕЧНИЙ АБОНЕМЕНТ","VI. ДОВІДКОВО-ІНФОРМАЦІЙНЕ ОБСЛУГОВУВАННЯ. \nМІЖБІБЛІОТЕЧНИЙ АБОНЕМЕНТ"]
["Кількість виконаних довідок","у т. ч. віртуальних","Кількість абонентів МБА, ММБА","Кількість виданих документів іншим \nбібліотекам через МБА, ММБА","Кількість отриманих документів з \nінших бібліотек"]
[1,2,3,4,5]
[5653,155,12,408,7]
[]
[]
["VII. ПЕРСОНАЛ БІБЛІОТЕКИ","VII. ПЕРСОНАЛ БІБЛІОТЕКИ","VII. ПЕРСОНАЛ БІБЛІОТЕКИ","VII. ПЕРСОНАЛ БІБЛІОТЕКИ","VII. ПЕРСОНАЛ БІБЛІОТЕКИ","VII. ПЕРСОНАЛ БІБЛІОТЕКИ","VII. ПЕРСОНАЛ БІБЛІОТЕКИ","VII. ПЕРСОНАЛ БІБЛІОТЕКИ","VII. ПЕРСОНАЛ БІБЛІОТЕКИ","VII. ПЕРСОНАЛ БІБЛІОТЕКИ","VII. ПЕРСОНАЛ БІБЛІОТЕКИ","VII. ПЕРСОНАЛ БІБЛІОТЕКИ","VII. ПЕРСОНАЛ БІБЛІОТЕКИ","VII. ПЕРСОНАЛ БІБЛІОТЕКИ","VII. ПЕРСОНАЛ БІБЛІОТЕКИ","VII. ПЕРСОНАЛ БІБЛІОТЕКИ","VII. ПЕРСОНАЛ БІБЛІОТЕКИ","VII. ПЕРСОНАЛ БІБЛІОТЕКИ","VII. ПЕРСОНАЛ БІБЛІОТЕКИ"]
["Загальна кількість працівників","Кількість бібліотечних фахівців","з них мають освіту","з них мають освіту","з них мають освіту","з них мають освіту","Кількість бібліотечних фахівців, які мають стаж бібліотечної роботи","Кількість бібліотечних фахівців, які мають стаж бібліотечної роботи","Кількість бібліотечних фахівців, які мають стаж бібліотечної роботи","Кількість бібліотечних фахівців, які мають стаж бібліотечної роботи","Віковий склад кадрів\t","Віковий склад кадрів\t","Віковий склад кадрів\t","Віковий склад кадрів\t","Із загальної кількості бібліотечних фахівців працюють","Із загальної кількості бібліотечних фахівців працюють","Кількість бібліотечних фахівців, які \nпідвищили свою кваліфікацію \n(протягом року)","Загальна кількість навчань з ІТ для \nбібліотекарів ","Кількість бібліотекарів, для яких \nорганізовано навчання у тренінгових \nцентрах"]
["Загальна кількість працівників","Кількість бібліотечних фахівців","повну вищу","у т. ч. спеціальну","базову вищу","у т. ч. спеціальну","до 3 років","понад 3 роки ","понад 10 років ","понад 20 років","до 30 років","від 30 до 45 років ","від 45 до 60 років ","від 60 років","повний робочий день","неповний робочий день","Кількість бібліотечних фахівців, які \nпідвищили свою кваліфікацію \n(протягом року)","Загальна кількість навчань з ІТ для \nбібліотекарів ","Кількість бібліотекарів, для яких \nорганізовано навчання у тренінгових \nцентрах"]
[1,2,3,4,5,6,7,8,9,10,11,12,13,14,15,16,17,18,19]
[30,20,14,9,4,3,6,8,2,4,11,3,5,1,19,1,17,0,0]
[]
[]
["VIII. ФІНАНСУВАННЯ","VIII. ФІНАНСУВАННЯ","VIII. ФІНАНСУВАННЯ","VIII. ФІНАНСУВАННЯ","VIII. ФІНАНСУВАННЯ","VIII. ФІНАНСУВАННЯ","VIII. ФІНАНСУВАННЯ","VIII. ФІНАНСУВАННЯ","VIII. ФІНАНСУВАННЯ","VIII. ФІНАНСУВАННЯ","VIII. ФІНАНСУВАННЯ","VIII. ФІНАНСУВАННЯ","VIII. ФІНАНСУВАННЯ","VIII. ФІНАНСУВАННЯ","VIII. ФІНАНСУВАННЯ","VIII. ФІНАНСУВАННЯ","VIII. ФІНАНСУВАННЯ","VIII. ФІНАНСУВАННЯ","VIII. ФІНАНСУВАННЯ","VIII. ФІНАНСУВАННЯ"]
["Загальна сума надходжень \nкоштів за рік","Кошти загального фонду","Кошти загального фонду","Кошти загального фонду","Кошти загального фонду","Кошти загального фонду","Кошти загального фонду","Кошти спеціального фонду","Кошти спеціального фонду","Кошти спеціального фонду","Кошти спеціального фонду","Викорис-\nтання коштів, усього","з них","з них","з них","з них","з них","з них","з них","Залишок коштів спеціаль\nного фонду на кінець року"]
["Загальна сума надходжень \nкоштів за рік","усього","з них","з них","з них","з них","з них","усього","з них","з них","з них","Викорис-\nтання коштів, усього","на оплату праці","на комплектування \nфонду","у т. ч. за рахунок коштів \nзагального фонду","на поточний і \nкапітальний ремонти","у т. ч. за рахунок коштів \nзагального фонду","на придбання основних \nзасобів","у т. ч. за рахунок коштів \nзагального фонду","Залишок коштів спеціаль\nного фонду на кінець року"]
["Загальна сума надходжень \nкоштів за рік","усього","на оплату праці","на комплектування","у т. ч. на періодичні \nвидання","на поточний і \nкапітальний ремонти","на придбання \nосновних засобів","усього","надання платних \nпослуг","благодійні, \nспонсорські внески ","інші джерела","Викорис-\nтання коштів, усього","на оплату праці","на комплектування \nфонду","у т. ч. за рахунок коштів \nзагального фонду","на поточний і \nкапітальний ремонти","у т. ч. за рахунок коштів \nзагального фонду","на придбання основних \nзасобів","у т. ч. за рахунок коштів \nзагального фонду","Залишок коштів спеціаль\nного фонду на кінець року"]
[1,2,3,4,5,6,7,8,9,10,11,12,13,14,15,16,17,18,19,20]
[3928747,3643277,2678805,0,0,0,0,285470,7763,264778,12929,3924285,2678805,277707,0,0,0,0,0,4462]

{"sheet":"6-НК_тис","index":3,"n_rows":107,"n_cols":19,"rows_kept":107,"cut":false,"hidden":false,"merged":[[12,13,12,14],[12,1,12,12],[50,18,54,18],[48,9,48,18],[49,13,49,18],[49,9,49,12],[50,9,54,9],[48,1,54,5],[91,1,94,1],[80,11,81,11],[79,1,81,1],[74,2,74,4],[74,5,74,6],[74,7,74,8],[74,9,74,10],[48,6,54,6],[34,1,36,1],[58,1,58,5],[43,1,43,18],[44,1,44,18],[45,1,45,18],[46,1,46,18],[34,15,35,16],[36,15,36,16],[37,15,37,16],[38,15,38,16],[32,1,32,18],[24,2,27,2],[24,14,24,17],[24,7,24,10],[25,14,27,14],[24,18,27,18],[25,7,25,8],[25,9,25,10],[25,11,25,12],[25,13,27,13],[25,15,27,15],[25,17,27,17],[26,7,27,7],[26,8,27,8],[24,5,27,5],[24,6,27,6],[26,10,27,10],[26,11,27,11],[1,1,1,18],[10,15,10,18],[11,15,11,18],[31,1,31,18],[11,1,11,12],[11,13,11,14],[8,15,8,18],[9,15,9,18],[4,15,4,18],[7,15,7,18],[3,13,3,14],[4,13,5,14],[6,13,9,14],[3,1,3,12],[4,1,5,12],[6,1,6,12],[26,12,27,12],[24,1,27,1],[24,3,25,4],[26,3,27,3],[26,4,27,4],[25,16,27,16],[10,13,10,14],[10,1,10,12],[7,1,7,12],[8,1,8,12],[9,1,9,12],[22,1,22,18],[20,2,20,18],[19,1,19,18],[24,11,24,13],[26,9,27,9],[55,1,55,5],[50,14,54,14],[50,15,51,17],[38,2,38,4],[34,5,36,7],[37,5,37,7],[38,5,38,7],[34,13,36,14],[37,13,37,14],[38,13,38,14],[34,8,35,12],[34,17,36,18],[34,2,36,4],[37,2,37,4],[37,17,37,18],[38,17,38,18],[56,1,56,5],[57,1,57,5],[73,1,73,6],[73,13,73,18],[52,16,54,16],[52,17,54,17],[68,1,68,18],[69,1,69,18],[70,1,70,18],[71,1,71,18],[58,7,58,8],[59,7,59,8],[60,7,60,8],[59,1,59,5],[60,1,60,5],[52,15,54,15],[50,10,54,10],[50,11,54,11],[50,12,54,12],[55,7,55,8],[56,7,56,8],[57,7,57,8],[48,7,54,8],[50,13,54,13],[74,11,74,12],[74,13,74,14],[74,15,74,16],[74,17,74,18],[75,17,75,18],[76,17,76,18],[75,15,75,16],[76,15,76,16],[73,7,73,12],[75,9,75,10],[76,9,76,10],[75,11,75,12],[76,11,76,12],[75,13,75,14],[76,13,76,14],[75,2,75,4],[76,2,76,4],[75,5,75,6],[76,5,76,6],[75,7,75,8],[76,7,76,8],[78,1,78,18],[79,2,81,4],[79,5,81,6],[79,7,79,10],[79,15,79,18],[79,11,79,14],[80,12,81,12],[80,13,81,13],[80,14,81,14],[91,4,91,18],[82,2,82,4],[82,5,82,6],[83,2,83,4],[83,5,83,6],[80,7,81,7],[80,9,81,9],[80,10,81,10],[91,2,94,3],[93,4,94,5],[94,6,94,7],[94,8,94,9],[92,4,92,13],[80,8,81,8],[87,1,87,18],[88,1,88,18],[89,1,89,18],[90,1,90,18],[82,17,82,18],[83,17,83,18],[80,15,81,16],[80,17,81,18],[82,15,82,16],[83,15,83,16],[92,14,92,18],[93,16,93,18],[93,6,93,13],[95,14,95,15],[96,6,96,7],[96,4,96,5],[96,2,96,3],[98,17,99,18],[100,17,100,18],[100,1,100,2],[95,8,95,9],[95,10,95,11],[95,12,95,13],[96,12,96,13],[96,10,96,11],[96,8,96,9],[96,14,96,15],[100,13,100,14],[95,2,95,3],[95,4,95,5],[95,6,95,7],[94,10,94,11],[94,12,94,13],[93,14,94,15],[101,17,101,18],[98,1,99,2],[98,3,98,16],[99,3,99,4],[99,5,99,6],[99,7,99,8],[99,9,99,10],[99,11,99,12],[99,13,99,14],[99,15,99,16],[100,15,100,16],[101,1,101,2],[101,3,101,4],[101,5,101,6],[101,7,101,8],[101,9,101,10],[101,11,101,12],[101,13,101,14],[101,15,101,16],[100,3,100,4],[100,5,100,6],[100,7,100,8],[100,9,100,10],[100,11,100,12]]}
[]
[null,"Звіт про діяльність державних, публічних бібліотек, централізованих бібліотечних систем (ЦБС), що віднесені до сфери управління Міністерства культури і туризму України"]
[]
[null,"Подають:",null,null,null,null,null,null,null,null,null,null,null,"Термін подання"]
[null,"Бібліотеки централізованої бібліотечної системи - ЦРБ, бібліотеки, що не входять до складу ЦБС - відділам культури і туризму районних державних адміністрацій ",null,null,null,null,null,null,null,null,null,null,null,"до 20 січня",null,"Форма № 6-НК"]
[]
[null,"Відділи культури і туризму районних державних адміністрацій зведену інформацію по ",null,null,null,null,null,null,null,null,null,null,null,"до 1 лютого"]
[null,"району (місту) – Міністерству культури і мистецтв Автономної Республіки Крим, ",null,null,null,null,null,null,null,null,null,null,null,null,null,"ЗАТВЕРДЖЕНО"]
[null,"Головному управлінню культури і мистецтв Київської міської державної адміністрації, ",null,null,null,null,null,null,null,null,null,null,null,null,null,"Наказ Міністерства"]
[null,"управлінню культури і туризму обласних та Севастопольської міської державних адміністрацій",null,null,null,null,null,null,null,null,null,null,null,null,null," культури і туризму України"]
[null,"Республіканські, обласні бібліотеки, центральні міські бібліотеки міст Києва та Севастополя – Міністерству культури і мистецтв Автономної Республіки Крим, Головному управлінню культури і мистецтв Київської міської державної адміністрації, управлінню культури і туризму обласних та Севастопольської міської державних адміністрацій ",null,null,null,null,null,null,null,null,null,null,null,"до 1 лютого",null,"5 грудня 2007 №75"]
[null,"Національні, державні бібліотеки, Міністерство культури і мистецтв Автономної Республіки Крим, Головне управління культури і мистецтв Київської міської державної адміністрації, управління культури і туризму обласних та Севастопольської міської державних адміністрацій зведену інформацію по регіонах – Міністерству культури і туризму України та головним управлінням статистики в Автономній Республіці Крим, областях, місті Києві та Управлінню статистики в місті Севастополі ",null,null,null,null,null,null,null,null,null,null,null,"до 10 лютого",null,"за погодженням з Держкомстатом України"]
[null,"Міністерство культури і туризму України зведену інформацію про заклади системи Міністерства культури і туризму України та по регіонах – Державному комітету статистики України",null,null,null,null,null,null,null,null,null,null,null,"до 15 березня"]
[]
[null,"Респондент :"]
[null,"Найменування Луганська ОУНБ"]
[null,"Місцезнаходження: Луганська обл., м. Старобільськ, кв. Дружби, 1-а"]
[]
[]
[null,2]
[null," "," Продовження форми № 6-НК"]
[]
[null,"І. МАТЕРІАЛЬНО-ТЕХНІЧНА БАЗА"]
[]
[null,"Код рядка","Загальна площа приміщень бібліотеки (кв. м.)","У т. ч.",null,"Кількість пунктів бібліотечного \nобслуговування (од.)","Кількість місць ","Характеристика приміщення бібліотеки (од.)",null,null,null,"Кількість технічних засобів (од.)",null,null,"Засоби зв’язку",null,null,null,"Кількість транспортних засобів"]
[null,null,null,null,null,null,null,"майнова",null,"технічна",null,"оргтехніка",null,"мультимедійне обладнання","кількість телефонних номерів","кількість факсів ","кількість електронних адрес","кількість комп’ютерів, які мають доступ до мережі Інтернету"]
[null,null,null,"для зберігання фондів","для обслуговування користувачів",null,null,"на праві оперативного управління","орендоване","потребує капітального ремонту","аварійне","комп’ютери","копіювально-розмножувальна техніка"]
[]
[null,"А",1,2,3,4,5,6,7,8,9,10,11,12,13,14,15,16,17]
[null,"01",{"$f":"Звіт!A8","v":148},{"$f":"Звіт!B8","v":48},{"$f":"Звіт!C8","v":100},{"$f":"Звіт!D8","v":0},{"$f":"Звіт!Q8","v":80},{"$f":"Звіт!F8","v":0},{"$f":"Звіт!G8","v":1},{"$f":"Звіт!H8","v":0},{"$f":"Звіт!I8","v":0},{"$f":"Звіт!U8","v":18},{"$f":"Звіт!Z8","v":1},{"$f":"Звіт!AA8","v":5},{"$f":"Звіт!R8","v":0},{"$f":"Звіт!S8","v":0},{"$f":"Звіт!T8","v":3},{"$f":"Звіт!W8","v":18},{"$f":"Звіт!AC8","v":0}]
[]
[null,"ІІ. КОРИСТУВАЧІ, ВІДВІДУВАННЯ, ЗВЕРНЕННЯ ДО БІБЛІОТЕКИ"]
[null," (тис. осіб з одним знаком після коми)"]
[]
[null,"Код рядка","Кількість користувачів протягом року (усього) ",null,null,"Кількість зареєстрованих користувачів, згідно з єдиною реєстраційною картотекою (протягом року)",null,null,"Кількість зареєстрованих користувачів за віком:",null,null,null,null,"Кількість відвідувань бібліотеки протягом року (усього)",null,"у т.ч.",null,"Кількість відвідувань масових заходів, організованих бібліотекою"]
[]
[null,null,null,null,null,null,null,null,"до 15 років","у т.ч. до 7 років","15 – 17 років "," 18-21 рік","від 22 років",null,null,"Кількість звернень на веб-сайт бібліотеки"]
[null,"А",1,null,null,2,null,null,3,4,5,6,7,8,null,9,null,10]
[null,"01",{"$f":"Звіт!B15/1000","v":9.7739999999999991},null,null,{"$f":"Звіт!D15/1000","v":2.7949999999999999},null,null,{"$f":"(Звіт!E15+Звіт!F15)/1000","v":0.36899999999999999},{"$f":"Звіт!E15/1000","v":1.9E-2},0.3,{"$f":"Звіт!H15/1000","v":0.56799999999999995},{"$f":"(Звіт!I15+Звіт!J15)/1000","v":1.478},{"$f":"Звіт!K15/1000","v":100.883},null,{"$f":"Звіт!C36/1000","v":13.22},null,{"$f":"Звіт!L15/1000","v":5.66}]
[]
[]
[]
[]
[null,3]
[null," Продовження форми № 6-НК"]
[null,"ІІІ. ФОРМУВАННЯ І ВИКОРИСТАННЯ БІБЛІОТЕЧНИХ ФОНДІВ"]
[null," (тис. примірників з двома знаками після коми)"]
[]
[null,"Назва",null,null,null,null,"Код рядка","Усього документів бібліотечного фонду \n(сума гр. 2- 5)",null,"Із загальної кількості примірників"]
[null,null,null,null,null,null,null,null,null,"за видами ",null,null,null,"за мовами"]
[null,null,null,null,null,null,null,null,null,"книги","періодичні видання","аудіовізуальні матеріали","електронні видання","українською","російською"," мовами національних меншин",null,null,"іноземними мовами"]
[]
[]
[]
[]
[null,"А",null,null,null,null,"Б",1,null,2,3,4,5,6,7,8,9,10,11]
[null,"Надійшло примірників",null,null,null,null,"01",{"$f":"Звіт!A22/1000","v":2.4449999999999998},null,{"$f":"Звіт!B22/1000","v":2.2469999999999999},{"$f":"Звіт!C22/1000","v":0.18099999999999999},{"$f":"Звіт!D22/1000","v":0},{"$f":"Звіт!E22/1000","v":1.7000000000000001E-2},{"$f":"Звіт!G22/1000","v":2.2919999999999998},{"$f":"Звіт!H22/1000","v":0.13500000000000001},{"$f":"Звіт!I22/1000","v":0},null,null,{"$f":"Звіт!J22/1000","v":1.7999999999999999E-2}]
[null,"Вибуло примірників",null,null,null,null,"02",{"$f":"Звіт!O22/1000","v":1.01},null,{"$f":"Звіт!P22/1000","v":0},{"$f":"Звіт!Q22/1000","v":1.01},{"$f":"Звіт!R22/1000","v":0},{"$f":"Звіт!S22/1000","v":0},{"$f":"Звіт!U22/1000","v":0.751},{"$f":"Звіт!V22/1000","v":0.20200000000000001},{"$f":"Звіт!W22/1000","v":0},null,null,{"$f":"Звіт!X22/1000","v":5.7000000000000002E-2}]
[null,"На кінець звітного року (усього)",null,null,null,null,"03",{"$f":"Звіт!Y22/1000","v":10.958},null,{"$f":"Звіт!Z22/1000","v":10.276999999999999},{"$f":"Звіт!AA22/1000","v":0.66100000000000003},{"$f":"Звіт!AB22/1000","v":0},{"$f":"Звіт!AC22/1000","v":0.02},{"$f":"Звіт!AE22/1000","v":9.0969999999999995},{"$f":"Звіт!AF22/1000","v":1.4790000000000001},{"$f":"Звіт!AG22/1000","v":0},null,null,{"$f":"Звіт!AH22/1000","v":0.38200000000000001}]
[null,"Видано примірників (усього)",null,null,null,null,"04",{"$f":"Звіт!A30/1000","v":34.173999999999999},null,{"$f":"Звіт!B30/1000","v":26.591000000000001},{"$f":"Звіт!C30/1000","v":7.5830000000000002},{"$f":"Звіт!D30/1000","v":0},{"$f":"Звіт!E30/1000","v":0},{"$f":"Звіт!G30/1000","v":26.541},{"$f":"Звіт!H30/1000","v":4.2329999999999997},{"$f":"Звіт!I30/1000","v":0},null,null,{"$f":"Звіт!J30/1000","v":3.4}]
[null,"з них дітям до 15 років",null,null,null,null,"05",{"$f":"Звіт!K30/1000","v":13.693},null,{"$f":"Звіт!L30/1000","v":10.689},{"$f":"Звіт!M30/1000","v":3.004},{"$f":"Звіт!N30/1000","v":0},{"$f":"Звіт!O30/1000","v":0},{"$f":"Звіт!Q30/1000","v":10.625},{"$f":"Звіт!R30/1000","v":1.72},{"$f":"Звіт!S30/1000","v":0},null,null,1.34]
[]
[]
[]
[]
[]
[]
[]
[null,4]
[null,"Продовження форми № 6-НК"]
[null,"ІV. ЕЛЕКТРОННІ РЕСУРСИ. "]
[null,"ДОВІДКОВО-ІНФОРМАЦІЙНЕ ОБСЛУГОВУВАННЯ. МІЖБІБЛІОТЕЧНИЙ АБОНЕМЕНТ"]
[]
[null,"Електронні ресурси",null,null,null,null,null,"Інформаційне обслуговування",null,null,null,null,null,"Міжбібліотечний абонемент"]
[null,"Код рядка","обсяг власних електронних баз даних (тис. записів)",null,null,"з них записів у електронному каталозі",null,"Загальна кількість користувачів (усього осіб)",null,"з них індивідуальних",null,"Загальна кількість звернень ",null,"кількість користувачів міжбібліотечного абонементу",null,"кількість виданих документів іншим бібліотекам",null,"кількість отриманих документів з інших бібліотек"]
[null,"А",1,null,null,2,null,3,null,4,null,5,null,6,null,7,null,8]
[null,"01",{"$f":"Звіт!G36/1000","v":14.661},null,null,{"$f":"Звіт!E36/1000","v":14.661},null,4511,null,36,null,5653,null,{"$f":"Звіт!C42","v":12},null,{"$f":"Звіт!D42","v":408},null,{"$f":"Звіт!E42","v":7}]
[]
[null,"V. ПЕРСОНАЛ БІБЛІОТЕКИ "]
[null,"Код рядка","Загальна кількість працівників (осіб)",null,null,"Кількість працівників бібліотеки",null,"3 них мають освіту:",null,null,null,"Кількість працівників бібліотек, які мають стаж бібліотечної роботи",null,null,null,"Із загальної кількості працівників бібліотек (гр. 2) працюють"]
[null,null,null,null,null,null,null,"повну вищу ","у т. ч. вищу спеціальну","базову вищу","у т. ч. спеціальну","до 3 років","3-9 років","10 – 20 років","понад 20 років","повний робочий день",null,"неповний робочий день"]
[]
[null,"А",1,null,null,2,null,3,4,5,6,7,8,9,10,11,null,12]
[null,"01",{"$f":"Звіт!A49","v":30},null,null,{"$f":"Звіт!B49","v":20},null,{"$f":"Звіт!C49","v":14},{"$f":"Звіт!D49","v":9},{"$f":"Звіт!E49","v":4},{"$f":"Звіт!F49","v":3},{"$f":"Звіт!G49","v":6},{"$f":"Звіт!H49","v":8},{"$f":"Звіт!I49","v":2},{"$f":"Звіт!J49","v":4},{"$f":"Звіт!O49","v":19},null,{"$f":"Звіт!P49","v":1}]
[]
[]
[]
[null,5]
[null,"Продовження форми № 6-НК"]
[null,"VІ. НАДХОДЖЕННЯ ТА ВИКОРИСТАННЯ КОШТІВ"]
[null," (тис. грн. з одним знаком після коми)"]
[null,"Код рядка","Загальна сума надходжень за рік (гр..2,7)",null,"у т.ч."]
[null,null,null,null,"кошти загального фонду",null,null,null,null,null,null,null,null,null,"кошти спеціального фонду"]
[null,null,null,null,"усього",null,"з них:",null,null,null,null,null,null,null,"усього",null,"з них:"]
[null,null,null,null,null,null,"на оплату праці",null,"на комплек-тування фондів",null,"на поточний і капітальний ремонти",null,"на придбання основних засобів",null,null,null,"надання платних послуг","благодійні, спонсорські внески","інші джерела"]
[null,"А",1,null,2,null,3,null,4,null,5,null,6,null,7,null,8,9,10]
[null,"01",3928.8,null,{"$f":"Звіт!B57/1000","v":3643.277},null,{"$f":"Звіт!C57/1000","v":2678.8049999999998},null,{"$f":"Звіт!D57/1000","v":0},null,{"$f":"Звіт!F57/1000","v":0},null,{"$f":"Звіт!G57/1000","v":0},null,{"$f":"Звіт!H57/1000","v":285.47000000000003},null,{"$f":"Звіт!I57/1000","v":7.7629999999999999},{"$f":"Звіт!J57/1000","v":264.77800000000002},{"$f":"Звіт!K57/1000","v":12.929}]
[]
[null,"Використання коштів (тис. грн.)",null,"з них:",null,null,null,null,null,null,null,null,null,null,null,null,null,"Залишок коштів спеціального фонду на кінець року, (тис. грн.)"]
[null,null,null,"на оплату праці",null,"на комплектування фонду ",null,"у т.ч.: за рахунок коштів загального фонду",null,"на поточний і капітальний ремонти",null,"у т.ч.: за рахунок коштів загального фонду ",null,"на придбання основних засобів",null," у т.ч.: за рахунок коштів загального фонду"]
[null,11,null,12,null,13,null,14,null,15,null,16,null,17,null,18,null,19]
[null,{"$f":"Звіт!L57/1000","v":3924.2849999999999},null,{"$f":"Звіт!M57/1000","v":2678.8049999999998},null,{"$f":"Звіт!N57/1000","v":277.70699999999999},null,{"$f":"Звіт!Q57/1000","v":0},null,{"$f":"Звіт!P57/1000","v":0},null,{"$f":"Звіт!Q57/1000","v":0},null,{"$f":"Звіт!R57/1000","v":0},null,{"$f":"Звіт!S57/1000","v":0},null,{"$f":"Звіт!T57/1000","v":4.4619999999999997}]
[]
[null,"* Розділ VІ не заповнюють бібліотеки-філії ЦБС"]
[null,"Керівник____Моісєєва С.А.______(П.І.Б.)",null,null,null,null,null,null,null,null,null,null,null,null,null,"Підпис"]
[null,"Виконавець __Букреєва О.О._____(П.І.Б) ",null,null,null,null,null,null,null,null,null,null,null,null,null,"(дата складання документа)"]
[null," М.П."]

{"sheet":"6-НК_абс","index":4,"n_rows":107,"n_cols":19,"rows_kept":107,"cut":false,"hidden":true,"merged":[[1,1,1,18],[3,1,3,12],[3,13,3,14],[4,1,5,12],[4,13,5,14],[4,15,4,18],[10,1,10,12],[10,13,10,14],[10,15,10,18],[11,1,11,12],[11,13,11,14],[11,15,11,18],[6,1,6,12],[6,13,9,14],[7,1,7,12],[7,15,7,18],[8,1,8,12],[8,15,8,18],[9,1,9,12],[9,15,9,18],[12,1,12,12],[12,13,12,14],[19,1,19,18],[20,2,20,18],[22,1,22,18],[24,1,27,1],[24,2,27,2],[24,3,25,4],[24,5,27,5],[24,6,27,6],[24,7,24,10],[24,11,24,13],[24,14,24,17],[24,18,27,18],[25,7,25,8],[25,9,25,10],[25,11,25,12],[25,13,27,13],[25,14,27,14],[25,15,27,15],[25,16,27,16],[25,17,27,17],[26,3,27,3],[26,4,27,4],[26,7,27,7],[26,8,27,8],[26,9,27,9],[26,10,27,10],[26,11,27,11],[26,12,27,12],[31,1,31,18],[32,1,32,18],[34,1,36,1],[34,2,36,4],[34,5,36,7],[34,8,35,12],[34,13,36,14],[34,15,35,16],[34,17,36,18],[36,15,36,16],[37,2,37,4],[37,5,37,7],[37,13,37,14],[37,15,37,16],[37,17,37,18],[38,2,38,4],[38,5,38,7],[38,13,38,14],[38,15,38,16],[38,17,38,18],[43,1,43,18],[44,1,44,18],[45,1,45,18],[46,1,46,18],[48,1,54,5],[48,6,54,6],[48,7,54,8],[48,9,48,18],[49,9,49,12],[49,13,49,18],[50,15,51,17],[50,18,54,18],[52,15,54,15],[52,16,54,16],[52,17,54,17],[55,1,55,5],[55,7,55,8],[50,9,54,9],[50,10,54,10],[50,11,54,11],[50,12,54,12],[50,13,54,13],[50,14,54,14],[59,1,59,5],[59,7,59,8],[60,1,60,5],[60,7,60,8],[68,1,68,18],[69,1,69,18],[56,1,56,5],[56,7,56,8],[57,1,57,5],[57,7,57,8],[58,1,58,5],[58,7,58,8],[70,1,70,18],[71,1,71,18],[73,1,73,6],[73,7,73,12],[73,13,73,18],[74,2,74,4],[74,5,74,6],[74,7,74,8],[74,9,74,10],[74,11,74,12],[74,13,74,14],[74,15,74,16],[74,17,74,18],[75,2,75,4],[75,5,75,6],[75,7,75,8],[75,9,75,10],[75,11,75,12],[75,13,75,14],[75,15,75,16],[75,17,75,18],[76,2,76,4],[76,5,76,6],[76,7,76,8],[76,9,76,10],[76,11,76,12],[76,13,76,14],[76,15,76,16],[76,17,76,18],[78,1,78,18],[79,1,81,1],[79,2,81,4],[79,5,81,6],[79,7,79,10],[79,11,79,14],[79,15,79,18],[80,7,81,7],[80,8,81,8],[80,9,81,9],[80,17,81,18],[82,2,82,4],[82,5,82,6],[82,15,82,16],[82,17,82,18],[83,2,83,4],[83,5,83,6],[83,15,83,16],[83,17,83,18],[80,10,81,10],[80,11,81,11],[80,12,81,12],[80,13,81,13],[80,14,81,14],[80,15,81,16],[93,6,93,13],[93,14,94,15],[93,16,93,18],[94,6,94,7],[94,8,94,9],[94,10,94,11],[94,12,94,13],[87,1,87,18],[88,1,88,18],[89,1,89,18],[90,1,90,18],[91,1,94,1],[91,2,94,3],[91,4,91,18],[92,4,92,13],[92,14,92,18],[93,4,94,5],[95,14,95,15],[96,2,96,3],[96,4,96,5],[96,6,96,7],[96,8,96,9],[96,10,96,11],[96,12,96,13],[96,14,96,15],[95,2,95,3],[95,4,95,5],[95,6,95,7],[95,8,95,9],[95,10,95,11],[95,12,95,13],[98,1,99,2],[98,3,98,16],[98,17,99,18],[99,3,99,4],[99,5,99,6],[99,7,99,8],[99,9,99,10],[99,11,99,12],[99,13,99,14],[99,15,99,16],[101,15,101,16],[101,17,101,18],[100,13,100,14],[100,15,100,16],[100,17,100,18],[101,1,101,2],[101,3,101,4],[101,5,101,6],[101,7,101,8],[101,9,101,10],[101,11,101,12],[101,13,101,14],[100,1,100,2],[100,3,100,4],[100,5,100,6],[100,7,100,8],[100,9,100,10],[100,11,100,12]]}
[]
[null,"Звіт про діяльність державних, публічних бібліотек, централізованих бібліотечних систем (ЦБС), що віднесені до сфери управління Міністерства культури і туризму України"]
[]
[null,"Подають:",null,null,null,null,null,null,null,null,null,null,null,"Термін подання"]
[null,"Бібліотеки централізованої бібліотечної системи - ЦРБ, бібліотеки, що не входять до складу ЦБС - відділам культури і туризму районних державних адміністрацій ",null,null,null,null,null,null,null,null,null,null,null,"до 20 січня",null,"Форма № 6-НК"]
[]
[null,"Відділи культури і туризму районних державних адміністрацій зведену інформацію по ",null,null,null,null,null,null,null,null,null,null,null,"до 1 лютого"]
[null,"району (місту) – Міністерству культури і мистецтв Автономної Республіки Крим, ",null,null,null,null,null,null,null,null,null,null,null,null,null,"ЗАТВЕРДЖЕНО"]
[null,"Головному управлінню культури і мистецтв Київської міської державної адміністрації, ",null,null,null,null,null,null,null,null,null,null,null,null,null,"Наказ Міністерства"]
[null,"управлінню культури і туризму обласних та Севастопольської міської державних адміністрацій",null,null,null,null,null,null,null,null,null,null,null,null,null," культури і туризму України"]
[null,"Республіканські, обласні бібліотеки, центральні міські бібліотеки міст Києва та Севастополя – Міністерству культури і мистецтв Автономної Республіки Крим, Головному управлінню культури і мистецтв Київської міської державної адміністрації, управлінню культури і туризму обласних та Севастопольської міської державних адміністрацій ",null,null,null,null,null,null,null,null,null,null,null,"до 1 лютого",null,"5 грудня 2007 №75"]
[null,"Національні, державні бібліотеки, Міністерство культури і мистецтв Автономної Республіки Крим, Головне управління культури і мистецтв Київської міської державної адміністрації, управління культури і туризму обласних та Севастопольської міської державних адміністрацій зведену інформацію по регіонах – Міністерству культури і туризму України та головним управлінням статистики в Автономній Республіці Крим, областях, місті Києві та Управлінню статистики в місті Севастополі ",null,null,null,null,null,null,null,null,null,null,null,"до 10 лютого",null,"за погодженням з Держкомстатом України"]
[null,"Міністерство культури і туризму України зведену інформацію про заклади системи Міністерства культури і туризму України та по регіонах – Державному комітету статистики України",null,null,null,null,null,null,null,null,null,null,null,"до 15 березня"]
[]
[null,"Респондент :"]
[null,"Найменування МІНІСТЕРСТВО КУЛЬТУРИ І ТУРИЗМУ УКРАЇНИ"]
[null,"Місцезнаходження: м. Київ, вул.І.Франка, 19"]
[]
[]
[null,2]
[null," "," Продовження форми № 6-НК"]
[]
[null,"І. МАТЕРІАЛЬНО-ТЕХНІЧНА БАЗА"]
[]
[null,"Код рядка","Загальна площа приміщень бібліотеки (кв. м.)","У т. ч.",null,"Кількість пунктів бібліотечного \nобслуговування (од.)","Кількість місць ","Характеристика приміщення бібліотеки (од.)",null,null,null,"Кількість технічних засобів (од.)",null,null,"Засоби зв’язку",null,null,null,"Кількість транспортних засобів"]
[null,null,null,null,null,null,null,"майнова",null,"технічна",null,"оргтехніка",null,"мультимедійне обладнання","кількість телефонних номерів","кількість факсів ","кількість електронних адрес","кількість комп’ютерів, які мають доступ до мережі Інтернету"]
[null,null,null,"для зберігання фондів","для обслуговування користувачів",null,null,"на праві оперативного управління","орендоване","потребує капітального ремонту","аварійне","комп’ютери","копіювально-розмножувальна техніка"]
[]
[null,"А",1,2,3,4,5,6,7,8,9,10,11,12,13,14,15,16,17]
[null,"01",{"$f":"#REF!","v":{"$error":"#REF!"}},{"$f":"#REF!","v":{"$error":"#REF!"}},{"$f":"#REF!","v":{"$error":"#REF!"}},{"$f":"#REF!","v":{"$error":"#REF!"}},{"$f":"#REF!","v":{"$error":"#REF!"}},{"$f":"#REF!","v":{"$error":"#REF!"}},{"$f":"#REF!","v":{"$error":"#REF!"}},{"$f":"#REF!","v":{"$error":"#REF!"}},{"$f":"#REF!","v":{"$error":"#REF!"}},{"$f":"#REF!","v":{"$error":"#REF!"}},{"$f":"#REF!","v":{"$error":"#REF!"}},{"$f":"#REF!","v":{"$error":"#REF!"}},{"$f":"#REF!","v":{"$error":"#REF!"}},{"$f":"#REF!","v":{"$error":"#REF!"}},{"$f":"#REF!","v":{"$error":"#REF!"}},{"$f":"#REF!","v":{"$error":"#REF!"}},{"$f":"#REF!","v":{"$error":"#REF!"}}]
[]
[null,"ІІ. КОРИСТУВАЧІ, ВІДВІДУВАННЯ, ЗВЕРНЕННЯ ДО БІБЛІОТЕКИ"]
[]
[]
[null,"Код рядка","Кількість користувачів протягом року (усього) ",null,null,"Кількість зареєстрованих користувачів, згідно з єдиною реєстраційною картотекою (протягом року)",null,null,"Кількість зареєстрованих користувачів за віком:",null,null,null,null,"Кількість відвідувань бібліотеки протягом року (усього)",null,"у т.ч.",null,"Кількість відвідувань масових заходів, організованих бібліотекою"]
[]
[null,null,null,null,null,null,null,null,"до 15 років","у т.ч. до 7 років","15 – 17 років "," 18-21 рік","від 22 років",null,null,"Кількість звернень на веб-сайт бібліотеки"]
[null,"А",1,null,null,2,null,null,3,4,5,6,7,8,null,9,null,10]
[null,"01",{"$f":"#REF!","v":{"$error":"#REF!"}},null,null,{"$f":"#REF!","v":{"$error":"#REF!"}},null,null,{"$f":"#REF!+#REF!","v":{"$error":"#REF!"}},{"$f":"#REF!","v":{"$error":"#REF!"}},{"$f":"#REF!","v":{"$error":"#REF!"}},{"$f":"#REF!","v":{"$error":"#REF!"}},{"$f":"#REF!+#REF!","v":{"$error":"#REF!"}},{"$f":"#REF!","v":{"$error":"#REF!"}},null,{"$f":"#REF!","v":{"$error":"#REF!"}},null,{"$f":"#REF!","v":{"$error":"#REF!"}}]
[]
[]
[]
[]
[null,3]
[null," Продовження форми № 6-НК"]
[null,"ІІІ. ФОРМУВАННЯ І ВИКОРИСТАННЯ БІБЛІОТЕЧНИХ ФОНДІВ"]
[]
[]
[null,"Назва",null,null,null,null,"Код рядка","Усього документів бібліотечного фонду \n(сума гр. 2- 5)",null,"Із загальної кількості примірників"]
[null,null,null,null,null,null,null,null,null,"за видами ",null,null,null,"за мовами"]
[null,null,null,null,null,null,null,null,null,"книги","періодичні видання","аудіовізуальні матеріали","електронні видання","українською","російською"," мовами національних меншин",null,null,"іноземними мовами"]
[]
[]
[]
[]
[null,"А",null,null,null,null,"Б",1,null,2,3,4,5,6,7,8,9,10,11]
[null,"Надійшло примірників",null,null,null,null,"01",{"$f":"#REF!","v":{"$error":"#REF!"}},null,{"$f":"#REF!","v":{"$error":"#REF!"}},{"$f":"#REF!","v":{"$error":"#REF!"}},{"$f":"#REF!","v":{"$error":"#REF!"}},{"$f":"#REF!","v":{"$error":"#REF!"}},{"$f":"#REF!","v":{"$error":"#REF!"}},{"$f":"#REF!","v":{"$error":"#REF!"}},{"$f":"#REF!","v":{"$error":"#REF!"}},null,null,{"$f":"#REF!","v":{"$error":"#REF!"}}]
[null,"Вибуло примірників",null,null,null,null,"02",{"$f":"#REF!","v":{"$error":"#REF!"}},null,{"$f":"#REF!","v":{"$error":"#REF!"}},{"$f":"#REF!","v":{"$error":"#REF!"}},{"$f":"#REF!","v":{"$error":"#REF!"}},{"$f":"#REF!","v":{"$error":"#REF!"}},{"$f":"#REF!","v":{"$error":"#REF!"}},{"$f":"#REF!","v":{"$error":"#REF!"}},{"$f":"#REF!","v":{"$error":"#REF!"}},null,null,{"$f":"#REF!","v":{"$error":"#REF!"}}]
[null,"На кінець звітного року (усього)",null,null,null,null,"03",{"$f":"#REF!","v":{"$error":"#REF!"}},null,{"$f":"#REF!","v":{"$error":"#REF!"}},{"$f":"#REF!","v":{"$error":"#REF!"}},{"$f":"#REF!","v":{"$error":"#REF!"}},{"$f":"#REF!","v":{"$error":"#REF!"}},{"$f":"#REF!","v":{"$error":"#REF!"}},{"$f":"#REF!","v":{"$error":"#REF!"}},{"$f":"#REF!","v":{"$error":"#REF!"}},null,null,{"$f":"#REF!","v":{"$error":"#REF!"}}]
[null,"Видано примірників (усього)",null,null,null,null,"04",{"$f":"#REF!","v":{"$error":"#REF!"}},null,{"$f":"#REF!","v":{"$error":"#REF!"}},{"$f":"#REF!","v":{"$error":"#REF!"}},{"$f":"#REF!","v":{"$error":"#REF!"}},{"$f":"#REF!","v":{"$error":"#REF!"}},{"$f":"#REF!","v":{"$error":"#REF!"}},{"$f":"#REF!","v":{"$error":"#REF!"}},{"$f":"#REF!","v":{"$error":"#REF!"}},null,null,{"$f":"#REF!","v":{"$error":"#REF!"}}]
[null,"з них дітям до 15 років",null,null,null,null,"05",{"$f":"#REF!","v":{"$error":"#REF!"}},null,{"$f":"#REF!","v":{"$error":"#REF!"}},{"$f":"#REF!","v":{"$error":"#REF!"}},{"$f":"#REF!","v":{"$error":"#REF!"}},{"$f":"#REF!","v":{"$error":"#REF!"}},{"$f":"#REF!","v":{"$error":"#REF!"}},{"$f":"#REF!","v":{"$error":"#REF!"}},{"$f":"#REF!","v":{"$error":"#REF!"}},null,null,{"$f":"#REF!","v":{"$error":"#REF!"}}]
[]
[]
[]
[]
[]
[]
[]
[null,4]
[null,"Продовження форми № 6-НК"]
[null,"ІV. ЕЛЕКТРОННІ РЕСУРСИ. "]
[null,"ДОВІДКОВО-ІНФОРМАЦІЙНЕ ОБСЛУГОВУВАННЯ. МІЖБІБЛІОТЕЧНИЙ АБОНЕМЕНТ"]
[]
[null,"Електронні ресурси",null,null,null,null,null,"Інформаційне обслуговування",null,null,null,null,null,"Міжбібліотечний абонемент"]
[null,"Код рядка","обсяг власних електронних баз даних",null,null,"з них записів у електронному каталозі",null,"Загальна кількість користувачів (усього осіб)",null,"з них індивідуальних",null,"Загальна кількість звернень ",null,"кількість користувачів міжбібліотечного абонементу",null,"кількість виданих документів іншим бібліотекам",null,"кількість отриманих документів з інших бібліотек"]
[null,"А",1,null,null,2,null,3,null,4,null,5,null,6,null,7,null,8]
[null,"01",{"$f":"#REF!","v":{"$error":"#REF!"}},null,null,{"$f":"#REF!","v":{"$error":"#REF!"}},null,null,null,null,null,null,null,{"$f":"#REF!","v":{"$error":"#REF!"}},null,{"$f":"#REF!","v":{"$error":"#REF!"}},null,{"$f":"#REF!","v":{"$error":"#REF!"}}]
[]
[null,"V. ПЕРСОНАЛ БІБЛІОТЕКИ "]
[null,"Код рядка","Загальна кількість працівників (осіб)",null,null,"Кількість працівників бібліотеки",null,"3 них мають освіту:",null,null,null,"Кількість працівників бібліотек, які мають стаж бібліотечної роботи",null,null,null,"Із загальної кількості працівників бібліотек (гр. 2) працюють"]
[null,null,null,null,null,null,null,"повну вищу ","у т. ч. вищу спеціальну","базову вищу","у т. ч. спеціальну","до 3 років","3-9 років","10 – 20 років","понад 20 років","повний робочий день",null,"неповний робочий день"]
[]
[null,"А",1,null,null,2,null,3,4,5,6,7,8,9,10,11,null,12]
[null,"01",{"$f":"#REF!","v":{"$error":"#REF!"}},null,null,{"$f":"#REF!","v":{"$error":"#REF!"}},null,{"$f":"#REF!","v":{"$error":"#REF!"}},{"$f":"#REF!","v":{"$error":"#REF!"}},{"$f":"#REF!","v":{"$error":"#REF!"}},{"$f":"#REF!","v":{"$error":"#REF!"}},{"$f":"#REF!","v":{"$error":"#REF!"}},{"$f":"#REF!","v":{"$error":"#REF!"}},{"$f":"#REF!","v":{"$error":"#REF!"}},{"$f":"#REF!","v":{"$error":"#REF!"}},{"$f":"#REF!","v":{"$error":"#REF!"}},null,{"$f":"#REF!","v":{"$error":"#REF!"}}]
[]
[]
[]
[null,5]
[null,"Продовження форми № 6-НК"]
[null,"VІ. НАДХОДЖЕННЯ ТА ВИКОРИСТАННЯ КОШТІВ"]
[]
[null,"Код рядка","Загальна сума надходжень за рік (гр..2,7)",null,"у т.ч."]
[null,null,null,null,"кошти загального фонду",null,null,null,null,null,null,null,null,null,"кошти спеціального фонду"]
[null,null,null,null,"усього",null,"з них:",null,null,null,null,null,null,null,"усього",null,"з них:"]
[null,null,null,null,null,null,"на оплату праці",null,"на комплек-тування фондів",null,"на поточний і капітальний ремонти",null,"на придбання основних засобів",null,null,null,"надання платних послуг","благодійні, спонсорські внески","інші джерела"]
[null,"А",1,null,2,null,3,null,4,null,5,null,6,null,7,null,8,9,10]
[null,"01",{"$f":"#REF!","v":{"$error":"#REF!"}},null,{"$f":"#REF!","v":{"$error":"#REF!"}},null,{"$f":"#REF!","v":{"$error":"#REF!"}},null,{"$f":"#REF!","v":{"$error":"#REF!"}},null,{"$f":"#REF!","v":{"$error":"#REF!"}},null,{"$f":"#REF!","v":{"$error":"#REF!"}},null,{"$f":"#REF!","v":{"$error":"#REF!"}},null,{"$f":"#REF!","v":{"$error":"#REF!"}},{"$f":"#REF!","v":{"$error":"#REF!"}},{"$f":"#REF!","v":{"$error":"#REF!"}}]
[]
[null,"Використання коштів",null,"з них:",null,null,null,null,null,null,null,null,null,null,null,null,null,"Залишок коштів спеціального фонду на кінець року, (грн.)"]
[null,null,null,"на оплату праці",null,"на комплектування фонду ",null,"у т.ч.: за рахунок коштів загального фонду",null,"на поточний і капітальний ремонти",null,"у т.ч.: за рахунок коштів загального фонду ",null,"на придбання основних засобів",null," у т.ч.: за рахунок коштів загального фонду"]
[null,11,null,12,null,13,null,14,null,15,null,16,null,17,null,18,null,19]
[null,{"$f":"#REF!","v":{"$error":"#REF!"}},null,{"$f":"#REF!","v":{"$error":"#REF!"}},null,{"$f":"#REF!","v":{"$error":"#REF!"}},null,{"$f":"#REF!","v":{"$error":"#REF!"}},null,{"$f":"#REF!","v":{"$error":"#REF!"}},null,{"$f":"#REF!","v":{"$error":"#REF!"}},null,{"$f":"#REF!","v":{"$error":"#REF!"}},null,{"$f":"#REF!","v":{"$error":"#REF!"}},null,{"$f":"#REF!","v":{"$error":"#REF!"}}]
[]
[null,"* Розділ VІ не заповнюють бібліотеки-філії ЦБС"]
[null,"Керівник____________________________________(П.І.Б.)",null,null,null,null,null,null,null,null,null,null,null,null,null,"Підпис"]
[null,"Виконавець __________________________________(П.І.Б) ",null,null,null,null,null,null,null,null,null,null,null,null,null,"(дата складання документа)"]
[null," М.П."]

{"sheet":"80-а-рвк_тис","index":5,"n_rows":80,"n_cols":14,"rows_kept":80,"cut":false,"hidden":true,"merged":[[81,1,81,9],[81,11,81,13],[77,1,77,6],[77,8,77,13],[78,1,78,13],[75,10,75,11],[75,6,75,7],[75,4,75,5],[70,12,70,13],[71,12,71,13],[72,12,72,13],[73,12,73,13],[74,12,74,13],[75,8,75,9],[75,12,75,13],[72,6,72,7],[73,6,73,7],[74,6,74,7],[71,2,71,3],[67,10,67,11],[68,10,68,11],[69,10,69,11],[70,10,70,11],[71,10,71,11],[72,10,72,11],[73,10,73,11],[74,10,74,11],[67,8,67,9],[68,8,68,9],[69,8,69,9],[70,8,70,9],[71,8,71,9],[72,8,72,9],[73,8,73,9],[74,8,74,9],[67,4,67,5],[68,4,68,5],[69,4,69,5],[70,4,70,5],[71,4,71,5],[72,4,72,5],[73,4,73,5],[74,4,74,5],[70,6,70,7],[71,6,71,7],[60,1,60,13],[62,1,62,13],[64,1,65,1],[64,4,65,5],[64,6,65,7],[64,8,65,9],[64,10,64,13],[65,10,65,11],[45,7,46,7],[45,3,46,3],[45,4,46,4],[45,5,46,5],[44,2,46,2],[44,1,46,1],[33,11,33,13],[34,11,34,13],[34,6,34,7],[40,1,40,13],[42,1,42,13],[45,8,45,10],[44,3,44,5],[44,6,44,12],[45,11,45,12],[45,6,46,6],[33,8,33,10],[34,8,34,10],[33,6,33,7],[33,1,33,4],[34,1,34,4],[44,13,46,13],[30,11,30,13],[31,11,31,13],[32,11,32,13],[32,6,32,7],[25,8,25,10],[26,8,26,10],[27,8,27,10],[28,8,28,10],[29,8,29,10],[30,8,30,10],[31,8,31,10],[32,8,32,10],[30,6,30,7],[1,1,1,13],[20,1,20,13],[18,1,18,13],[22,8,22,13],[22,5,23,5],[23,8,23,10],[23,11,23,13],[9,1,9,8],[3,9,3,10],[4,9,4,10],[5,9,5,10],[6,9,6,10],[7,9,7,10],[8,9,8,10],[9,9,9,10],[3,1,3,8],[4,1,4,8],[5,1,5,8],[6,1,6,8],[7,1,7,8],[8,1,8,8],[7,11,7,13],[22,6,23,7],[4,11,4,13],[8,11,8,13],[22,1,23,4],[65,12,65,13],[66,10,66,11],[74,2,74,3],[75,2,75,3],[72,2,72,3],[73,2,73,3],[66,2,66,3],[66,12,66,13],[66,8,66,9],[64,2,65,3],[66,6,66,7],[66,4,66,5],[67,2,67,3],[68,2,68,3],[69,2,69,3],[70,2,70,3],[67,12,67,13],[68,12,68,13],[69,12,69,13],[67,6,67,7],[68,6,68,7],[69,6,69,7],[31,1,31,4],[32,1,32,4],[31,6,31,7],[13,1,13,3],[24,8,24,10],[24,11,24,13],[24,6,24,7],[25,6,25,7],[26,6,26,7],[27,6,27,7],[28,6,28,7],[29,6,29,7],[24,1,24,4],[25,1,25,4],[26,1,26,4],[27,1,27,4],[28,1,28,4],[29,1,29,4],[30,1,30,4],[25,11,25,13],[26,11,26,13],[27,11,27,13],[28,11,28,13],[29,11,29,13]]}
[]
[null,"Зведена звітність національних, державних, публічних та інших бібліотек"]
[]
[null,"Подають",null,null,null,null,null,null,null,"Термін подання"]
[null,"Публічні, спеціалізовані, спеціальні та інші бібліотеки, які не належать до сфери управління Міністерства культури і туризму України – відділам культури і туризму районних державних адміністрацій ",null,null,null,null,null,null,null,"до 20 січня",null,"Форма № 80-а-рвк \n(зведена річна)"]
[null,"Бібліотеки навчальних закладів – відділам культури і туризму районних державних адміністрацій",null,null,null,null,null,null,null,"до 1 лютого"]
[null,"Відділи культури і туризму районних державних адміністрацій - Міністерству культури і мистецтв Автономної Республіки Крим, Головному управлінню культури і мистецтв Київської міської державної адміністрації, управлінням культури і туризму обласних та Севастопольської міської державних адміністрацій",null,null,null,null,null,null,null,"до 10 лютого"]
[null,"Республіканські, обласні, центральні міські бібліотеки міст Києва та Севастополя - Міністерству культури і мистецтв Автономної Республіки Крим, Головному управлінню культури і мистецтв Київської міської державної адміністрації, управлінням культури і туризму обласних та Севастопольської міської державних адміністрацій",null,null,null,null,null,null,null,"до 10 лютого",null,"ЗАТВЕРДЖЕНО \nНаказ Міністерства культури і туризму України"]
[null," Міністерство культури і мистецтв Автономної Республіки Крим, Головне управління культури і мистецтв Київської міської державної адміністрації, управління культури і туризму обласних та Севастопольської міської державних адміністрацій, зведена звітність - Міністерству культури і туризму України та головним управлінням статистики в Автономій Республіці Крим, областях, місті Києві та Управлінню статистики в місті Севастополі",null,null,null,null,null,null,null,"до 25 лютого",null,"5 грудня 2007 №75\nза погодженням з Держкомстатом України"]
[null,"Міністерство культури і туризму України зведену інформацію по Україні та регіонах – Державному комітету статистики України",null,null,null,null,null,null,null,"до 30 березня"]
[]
[null,"Респондент:"]
[null,"Найменування МІНІСТЕРСТВО КУЛЬТУРИ І ТУРИЗМУ УКРАЇНИ"]
[]
[null,"Місцезнаходження м. Київ, вул.І.Франка,19"]
[null," "]
[]
[]
[null,2]
[]
[null,"Продовження форми № 80-а-рвк"]
[]
[null,"Види бібліотек",null,null,null,"Код рядка","Кількість бібліотек на кінець року (усього одиниць)",null,"З них"]
[null,null,null,null,null,null,null,null,"потребують капітального ремонту",null,null,"знаходяться в аварійному стані"]
[null,"А",null,null,null,"Б",1,null,2,null,null,3]
[null,"Публічні, спеціалізовані і спеціальні бібліотеки, незалежно від підпорядкування ",null,null,null,"01",{"$f":"#REF!","v":{"$error":"#REF!"}},null,{"$f":"#REF!","v":{"$error":"#REF!"}},null,null,{"$f":"#REF!","v":{"$error":"#REF!"}}]
[null,"Бібліотеки навчальних закладів – (усього)",null,null,null,"02"]
[null,"з них: \nзагальноосвітніх навчальних закладів ",null,null,null,"03"]
[null,"професійно–технічних навчальних закладів",null,null,null,"04"]
[null,"вищих навчальних закладів",null,null,null,"05"]
[null,"Республіканські, обласні, центральні міські бібліотеки міст Києва та Севастополя",null,null,null,"06"]
[null,"Із загальної кількості бібліотек – "]
[null,"для дітей ",null,null,null,"07",{"$f":"Дитячі!$G$1","v":2},null,{"$f":"Дитячі!$H$8","v":34},null,null,{"$f":"Дитячі!$I$8","v":36}]
[null,"для юнацтва ",null,null,null,"08",{"$f":"Юнацькі!$G$1","v":1},null,{"$f":"Юнацькі!$H$8","v":17},null,null,{"$f":"Юнацькі!$I$8","v":18}]
[null,"Разом (сума рядків 01, 02, 06, 06).",null,null,null,"09"]
[]
[]
[]
[null," "]
[]
[null,3]
[]
[null,"Продовження форми № 80-а-рвк"]
[]
[null,"Код рядка","Бібліотечні фонди (тис. прим. з одним десятковим знаком) \n(усього на кінець року)","за видами",null,null,"за мовами",null,null,null,null,null,null,"Надійшло документів за рік (тис. прим. з одним десятковим знаком)"]
[null,null,null," друковані","аудіо­візуальні"," електронні","українською","російською","Мовами національних меншин",null,null,"іншими мовами (указати)"]
[]
[null,"Б",4,5,6,7,8,9,10,11,12,13,14,15]
[null,"01",{"$f":"#REF!/1000","v":{"$error":"#REF!"}},{"$f":"(#REF!+#REF!)/1000","v":{"$error":"#REF!"}},{"$f":"#REF!/1000","v":{"$error":"#REF!"}},{"$f":"#REF!/1000","v":{"$error":"#REF!"}},{"$f":"#REF!/1000","v":{"$error":"#REF!"}},{"$f":"#REF!/1000","v":{"$error":"#REF!"}},{"$f":"#REF!/1000","v":{"$error":"#REF!"}},null,null,{"$f":"#REF!/1000","v":{"$error":"#REF!"}},null,{"$f":"#REF!/1000","v":{"$error":"#REF!"}}]
[null,"02"]
[null,"03"]
[null,"04"]
[null,"05"]
[null,"06"]
[null,"07",{"$f":"Дитячі!$Y$22/1000","v":0.188},{"$f":"(Дитячі!$Z$22+Дитячі!$AA$22)/1000","v":0.38200000000000001},{"$f":"Дитячі!$AB$22/1000","v":0.19400000000000001},{"$f":"Дитячі!$AC$22/1000","v":0.19600000000000001},{"$f":"Дитячі!$AE$22/1000","v":0.2},{"$f":"Дитячі!$AF$22/1000","v":0.20200000000000001},{"$f":"Дитячі!$AG$22/1000","v":0.20399999999999999},null,null,{"$f":"Дитячі!$AH$22/1000","v":0.20599999999999999},null,{"$f":"Дитячі!$A$22/1000","v":0.14000000000000001}]
[null,"08",{"$f":"Юнацькі!$Y$22/1000","v":9.4E-2},{"$f":"(Юнацькі!$Z$22+Юнацькі!$AA$22)/1000","v":0.191},{"$f":"Юнацькі!$AB$22/1000","v":9.7000000000000003E-2},{"$f":"Юнацькі!$AC$22/1000","v":9.8000000000000004E-2},{"$f":"Юнацькі!$AE$22/1000","v":0.1},{"$f":"Юнацькі!$AF$22/1000","v":0.10100000000000001},{"$f":"Юнацькі!$AG$22/1000","v":0.10199999999999999},null,null,{"$f":"Юнацькі!$AH$22/1000","v":0.10299999999999999},null,{"$f":"Юнацькі!$A$22/1000","v":7.0000000000000007E-2}]
[null,"09"]
[]
[]
[]
[null,4]
[]
[null,"Продовження форми № 80-а-рвк"]
[]
[null,"Код рядка"," Видано \n(тис. прим. з одним десятковим знаком)",null,"Кількість зареєстрованих користувачів на основі облікової документації \n(протягом року)",null,"У т.ч. користувачів віком до 18 років",null,"Кількість працівників бібліотеки на кінець року (осіб)",null,"З них:"]
[null,null,null,null,null,null,null,null,null,null,"з повною вищою спеціальною освітою",null,"з базовою вищою спеціальною освітою"]
[null,"Б",19,null,20,null,21,null,22,null,23,null,24]
[null,"01",{"$f":"#REF!/1000","v":{"$error":"#REF!"}},null,{"$f":"#REF!","v":{"$error":"#REF!"}},null,{"$f":"#REF!+#REF!+#REF!","v":{"$error":"#REF!"}},null,{"$f":"#REF!","v":{"$error":"#REF!"}},null,{"$f":"#REF!","v":{"$error":"#REF!"}},null,{"$f":"#REF!","v":{"$error":"#REF!"}}]
[null,"02"]
[null,"03"]
[null,"04"]
[null,"05"]
[null,"06"]
[null,"07",{"$f":"Дитячі!$A$30/1000","v":0.214},null,{"$f":"Дитячі!$D$15","v":86},null,{"$f":"Дитячі!$E$15+Дитячі!$F$15+Дитячі!$G$15","v":270},null,{"$f":"Дитячі!$B$49","v":288},null,{"$f":"Дитячі!$D$49","v":292},null,{"$f":"Дитячі!$F$49","v":296}]
[null,"08",{"$f":"Юнацькі!$A$30/1000","v":0.107},null,{"$f":"Юнацькі!$D$15","v":43},null,{"$f":"Юнацькі!$E$15+Юнацькі!$F$15+Юнацькі!$G$15","v":135},null,{"$f":"Юнацькі!$B$49","v":144},null,{"$f":"Юнацькі!$D$49","v":146},null,{"$f":"Юнацькі!$F$49","v":148}]
[null,"09"]
[null," "]
[null," Керівник",null,null,null,null,null,null,"Головний бухгалтер"]
[null," Прізвище, номер телефону виконавця"]
[null," М.П. "]